{"text_format":"1","workbook":"xlsx","n_sheets":3,"sheets":["Administrative Information","Methods","Fee Calculation"],"not_rendered":{"charts":0,"images":2,"macros":1,"external_links":0,"defined_names":2,"comments":2,"pivot_tables":0},"unopened":[],"bounds":{"document_bytes":16777216,"sheet_cells":100000,"rows_first":2000,"rows_last":500,"rows_between":2000,"halvings":0,"cell_chars":16384,"cell_head_chars":4096},"cells_cut":0,"cells_raw":0,"read":"whole","date_system":"1900"}

{"sheet":"Administrative Information","index":0,"n_rows":286,"n_cols":13,"rows_kept":286,"cut":false,"hidden":false,"merged":[[51,0,51,2],[51,4,51,5],[45,0,45,3],[10,8,10,10],[11,7,11,10],[26,7,26,8],[19,0,19,1],[22,0,22,1],[17,0,17,10],[20,0,20,10],[16,0,16,10],[26,1,26,4],[26,9,26,10],[11,0,11,1],[12,0,12,2],[224,0,224,1],[223,0,223,1],[28,2,28,4],[28,6,28,8],[60,0,60,10],[187,9,187,10],[74,4,74,5],[76,0,76,10],[72,0,72,10],[223,5,223,7],[223,8,223,10],[174,0,174,10],[223,2,223,4],[192,7,192,8],[193,7,193,8],[220,9,220,10],[178,9,178,10],[179,9,179,10],[190,7,190,8],[180,7,180,8],[73,2,73,3],[71,0,71,10],[224,2,224,4],[224,5,224,7],[224,8,224,10],[214,9,214,10],[215,9,215,10],[212,9,212,10],[213,9,213,10],[219,9,219,10],[208,9,208,10],[209,9,209,10],[217,9,217,10],[218,9,218,10],[210,9,210,10],[211,9,211,10],[216,9,216,10],[217,7,217,8],[215,7,215,8],[219,2,219,6],[212,2,212,6],[186,7,186,8],[187,7,187,8],[188,7,188,8],[210,7,210,8],[195,2,195,6],[201,7,201,8],[197,7,197,8],[191,7,191,8],[193,2,193,6],[194,2,194,6],[187,2,187,6],[195,7,195,8],[196,7,196,8],[189,7,189,8],[194,7,194,8],[208,7,208,8],[214,7,214,8],[205,7,205,8],[207,7,207,8],[230,9,230,10],[231,0,231,1],[231,2,231,6],[188,9,188,10],[189,9,189,10],[190,9,190,10],[216,7,216,8],[195,9,195,10],[191,9,191,10],[212,7,212,8],[213,7,213,8],[200,7,200,8],[205,9,205,10],[204,9,204,10],[202,7,202,8],[202,9,202,10],[199,9,199,10],[218,7,218,8],[219,7,219,8],[220,7,220,8],[215,2,215,6],[216,2,216,6],[217,2,217,6],[218,2,218,6],[181,9,181,10],[182,9,182,10],[183,9,183,10],[234,0,234,1],[234,2,234,6],[196,2,196,6],[197,2,197,6],[206,2,206,6],[207,2,207,6],[200,2,200,6],[204,2,204,6],[205,2,205,6],[220,2,220,6],[216,0,220,1],[199,2,199,6],[202,2,202,6],[203,2,203,6],[222,0,222,11],[230,0,230,1],[230,2,230,6],[185,0,185,1],[188,2,188,6],[189,2,189,6],[230,7,230,8],[183,7,183,8],[184,7,184,8],[186,9,186,10],[186,0,215,1],[200,9,200,10],[209,2,209,6],[210,2,210,6],[211,2,211,6],[201,2,201,6],[204,7,204,8],[208,2,208,6],[211,7,211,8],[209,7,209,8],[206,7,206,8],[213,2,213,6],[214,2,214,6],[185,2,185,6],[206,9,206,10],[207,9,207,10],[197,9,197,10],[203,9,203,10],[201,9,201,10],[196,9,196,10],[78,5,78,7],[178,2,179,6],[180,9,180,10],[82,5,82,10],[104,3,104,7],[83,0,83,10],[86,0,86,10],[87,0,87,10],[90,0,90,4],[96,3,96,9],[145,0,145,2],[113,0,113,11],[125,0,125,4],[139,0,139,4],[77,7,77,10],[80,0,80,10],[81,0,81,10],[100,0,100,2],[102,3,102,7],[77,0,77,6],[78,0,78,4],[88,0,88,4],[180,2,180,6],[84,0,84,10],[91,1,91,2],[180,0,180,1],[106,0,106,4],[96,0,96,2],[98,0,98,2],[102,0,102,2],[104,0,104,2],[98,3,98,9],[123,0,123,2],[123,3,123,7],[137,0,137,2],[137,3,137,7],[143,0,143,2],[143,3,143,9],[68,0,68,10],[69,0,69,10],[58,0,58,10],[47,0,47,4],[44,7,44,9],[48,0,48,4],[48,6,48,9],[12,9,12,10],[14,0,14,10],[19,2,19,10],[22,2,22,10],[24,2,24,10],[35,0,35,10],[41,0,41,10],[28,0,28,1],[33,0,33,10],[30,1,30,4],[30,5,30,6],[47,6,47,9],[44,4,44,6],[51,7,51,9],[24,0,24,1],[30,7,30,10],[44,0,44,3],[73,4,73,5],[66,0,66,10],[198,9,198,10],[198,7,198,8],[198,2,198,6],[169,0,169,10],[176,1,176,9],[100,3,100,6],[121,0,121,2],[121,3,121,7],[145,3,145,9],[129,0,129,2],[129,3,129,9],[131,0,131,2],[131,3,131,9],[133,0,133,2],[133,3,133,6],[133,8,133,10],[135,0,135,2],[149,0,149,2],[149,3,149,7],[151,0,151,2],[151,3,151,7],[135,3,135,7],[232,9,232,10],[233,0,233,1],[233,2,233,6],[233,7,233,8],[233,9,233,10],[37,0,37,10],[38,0,38,10],[39,0,39,10],[40,0,40,10],[232,0,232,1],[232,2,232,6],[232,7,232,8],[100,8,100,10],[186,2,186,6],[115,0,115,2],[115,3,115,9],[117,0,117,2],[117,3,117,9],[178,0,179,1],[231,7,231,8],[231,9,231,10],[119,0,119,2],[119,3,119,6],[119,8,119,10],[229,0,229,1],[229,2,229,6],[229,7,229,8],[229,9,229,10],[225,0,225,11],[147,0,147,2],[147,3,147,6],[157,3,157,9],[159,0,159,2],[159,3,159,9],[161,0,161,2],[161,3,161,6],[161,8,161,10],[153,0,153,4],[167,0,167,4],[147,8,147,10],[163,0,163,2],[163,3,163,7],[165,0,165,2],[165,3,165,7],[157,0,157,2],[227,0,228,1],[227,2,228,6],[184,9,184,10],[227,7,227,8],[227,9,227,10],[228,7,228,8],[178,7,178,8],[179,7,179,8],[171,0,171,10],[172,0,172,10],[181,2,181,6],[182,2,182,6],[183,2,183,6],[182,0,182,1],[183,0,183,1],[192,9,192,10],[193,9,193,10],[194,9,194,10],[184,0,184,1],[228,9,228,10],[181,0,181,1],[184,2,184,6],[190,2,190,6],[191,2,191,6],[192,2,192,6],[181,7,181,8],[182,7,182,8],[236,0,236,1],[236,2,236,6],[236,7,236,8],[236,9,236,10],[234,7,234,8],[234,9,234,10],[235,0,235,1],[235,2,235,6],[235,7,235,8],[235,9,235,10],[237,2,237,6],[237,7,237,8],[237,9,237,10],[242,0,242,1],[242,2,242,6],[240,0,240,1],[240,2,240,6],[240,7,240,8],[240,9,240,10],[241,0,241,1],[241,2,241,6],[241,7,241,8],[241,9,241,10],[242,7,242,8],[242,9,242,10],[238,0,238,1],[238,2,238,6],[238,7,238,8],[238,9,238,10],[237,0,237,1],[239,0,239,1],[239,2,239,6],[239,7,239,8],[239,9,239,10],[245,0,245,1],[245,2,245,6],[245,7,245,8],[245,9,245,10],[243,0,243,1],[246,0,246,1],[246,2,246,6],[246,7,246,8],[246,9,246,10],[243,2,243,6],[243,7,243,8],[243,9,243,10],[244,0,244,1],[244,2,244,6],[244,7,244,8],[244,9,244,10],[247,0,247,1],[247,2,247,6],[247,7,247,8],[247,9,247,10],[248,0,248,1],[248,2,248,6],[248,7,248,8],[248,9,248,10],[249,0,249,1],[249,2,249,6],[249,7,249,8],[249,9,249,10],[250,0,250,1],[250,2,250,6],[250,7,250,8],[250,9,250,10],[251,0,251,1],[251,2,251,6],[251,7,251,8],[251,9,251,10],[252,0,252,1],[252,2,252,6],[252,7,252,8],[252,9,252,10],[253,0,253,1],[253,2,253,6],[253,7,253,8],[253,9,253,10],[254,0,254,1],[254,2,254,6],[254,7,254,8],[254,9,254,10],[255,0,255,1],[255,2,255,6],[255,7,255,8],[255,9,255,10],[256,0,256,1],[256,2,256,6],[256,7,256,8],[256,9,256,10],[257,0,257,1],[257,2,257,6],[257,7,257,8],[257,9,257,10],[258,0,258,1],[258,2,258,6],[258,7,258,8],[258,9,258,10],[259,0,259,1],[259,2,259,6],[259,7,259,8],[259,9,259,10],[260,0,260,1],[260,2,260,6],[260,7,260,8],[260,9,260,10],[261,0,261,1],[261,2,261,6],[261,7,261,8],[261,9,261,10],[262,0,262,1],[262,2,262,6],[262,7,262,8],[262,9,262,10],[263,0,263,1],[263,2,263,6],[263,7,263,8],[263,9,263,10],[264,0,264,1],[264,2,264,6],[264,7,264,8],[264,9,264,10],[265,0,265,1],[265,2,265,6],[265,7,265,8],[265,9,265,10],[266,0,266,1],[266,2,266,6],[266,7,266,8],[266,9,266,10],[267,0,267,1],[267,2,267,6],[267,7,267,8],[267,9,267,10],[274,7,274,8],[274,9,274,10],[279,5,279,7],[279,8,279,10],[268,0,268,1],[268,2,268,6],[268,7,268,8],[268,9,268,10],[269,0,269,1],[269,2,269,6],[269,7,269,8],[269,9,269,10],[270,0,270,1],[270,2,270,6],[270,7,270,8],[270,9,270,10],[280,0,280,11],[282,0,282,11],[283,0,283,11],[277,0,277,11],[278,0,278,1],[278,2,278,4],[278,5,278,7],[278,8,278,10],[271,0,271,1],[271,2,271,6],[271,7,271,8],[271,9,271,10],[272,0,272,1],[272,2,272,6],[272,7,272,8],[272,9,272,10],[279,0,279,1],[279,2,279,4],[273,0,273,1],[273,2,273,6],[273,7,273,8],[273,9,273,10],[274,0,274,1],[274,2,274,6]]}
[null,null,null,null,null,null,null,null,null,null,null,null,"AL"]
[null,null,null,null,null,null,null,null,null,null,null,null,"AK"]
[null,null,null,null,null,null,null,null,null,null,null,null,"AZ"]
[null,null,null,null,null,null,null,null,null,null,null,null,"AR"]
[null,null,null,null,null,null,null,null,null,null,null,null,"CA"]
[null,null,null,null,null,null,null,null,null,null,null,null,"CO"]
[null,null,null,null,null,null,null,null,null,null,null,null,"CT"]
[null,null,null,null,null,null,null,null,null,null,null,null,"DE"]
[null,null,null,null,null,null,null,null,null,null,null,null,"FL"]
[null,null,null,null,null,null,null,null,null,null,null,null,"GA"]
["Division of Water and Waste Management",null,null,null,null,null,null,null,"Jim Justice, Governor",null,null,null,"HI"]
["601 57th Street SE",null,null,null,null,null,null,"Austin Caperton, Cabinet Secretary",null,null,null,null,"ID"]
["Charleston, WV 25304-2345",null,null,null,null,null,null,null,null,"www.dep.wv.gov",null,null,"IL"]
[]
["APPLICATION FOR CERTIFICATION OF ENVIRONMENTAL TESTING LABORATORY BY INSPECTION",null,null,null,null,null,null,null,null,null,null,null,"IN"]
[null,null,null,null,null,null,null,null,null,null,null,null,"IA"]
["LABORATORY NAME AND ADDRESS",null,null,null,null,null,null,null,null,null,null,null,"KS"]
["To apply for Certification, type or print the information requested in this application.",null,null,null,null,null,null,null,null,null,null,null,"KY"]
[null,null,null,null,null,null,null,null,null,null,null,null,"LA"]
["NAME:",null,null,null,null,null,null,null,null,null,null,null,"ME"]
["(As you wish it to appear on certificate, include branch name if applicable)",null,null,null,null,null,null,null,null,null,null,null,"MD"]
[null,null,null,null,null,null,null,null,null,null,null,null,"MA"]
["MAIL ADDRESS:",null,null,null,null,null,null,null,null,null,null,null,"MI"]
[null,null,null,null,null,null,null,null,null,null,null,null,"MN"]
["STREET ADDRESS:",null,null,null,null,null,null,null,null,null,null,null,"MS"]
[null,null,null,null,null,null,null,null,null,null,null,null,"MO"]
["CITY:",null,null,null,null,"STATE:",null,"ZIP CODE:",null,null,null,null,"MT"]
[null,null,null,null,null,null,null,null,null,null,null,null,"NE"]
["TELEPHONE:",null,null,null,null,"FAX:",null,null,null,null,null,null,"NV"]
[null,null,null,null,null,null,null,null,null,null,null,null,"NH"]
["E-MAIL:",null,null,null,null,"WEBSITE:",null,null,null,null,null,null,"NJ"]
[null,null,null,null,null,null,null,null,null,null,null,null,"NM"]
[null,null,null,null,null,null,null,null,null,null,null,null,"NY"]
["OWNERSHIP of the laboratory (enter \"same as above\" or name of parent company or organization)",null,null,null,null,null,null,null,null,null,null,null,"NC"]
[null,null,null,null,null,null,null,null,null,null,null,null,"ND"]
[null,null,null,null,null,null,null,null,null,null,null,null,"OH"]
[null,null,null,null,null,null,null,null,null,null,null,null,"OK"]
["AUTHORIZED REPRESENTATIVE of the laboratory who is the contact person responsible for the information",null,null,null,null,null,null,null,null,null,null,null,"OR"]
["provided in this application and for ensuring compliance with the requirements for DEP certification.  As the applicant",null,null,null,null,null,null,null,null,null,null,null,"PA"]
[" laboratory's in AUTHORIZED REPRESENTATIVE, I attest that all statements made on this application are correct to the ",null,null,null,null,null,null,null,null,null,null,null,"RI"]
["best of my knowledge and belief, that performance evaluation samples have been ordered for testing and that all ",null,null,null,null,null,null,null,null,null,null,null,"SC"]
["deficiencies from previous inspections, if applicable, have been corrected.",null,null,null,null,null,null,null,null,null,null,null,"SD"]
[null,null,null,null,null,null,null,null,null,null,null,null,"TN"]
[null,null,null,null,null,null,null,null,null,null,null,null,"TX"]
[null,null,null,null,null,null,null,null,null,null,null,null,"UT"]
["     Printed Name ",null,null,null,null,"Title",null,null,"Telephone",null,"Ext",null,"VT"]
[null,null,null,null,null,null,null,null,null,null,null,null,"VA"]
[null,null,null,null,null,null,null,null,null,null,null,null,"WA"]
["Signature",null,null,null,null,null,"Date",null,null,null,null,null,"WV"]
[null,null,null,null,null,null,null,null,null,null,null,null,"WI"]
[]
["THIS APPLICATION IS FOR:",null,null,null,"New Certification",null,null,"Renewal of certificate Number:"]
[]
[]
[]
[]
[]
[]
["SUPPORTING INFORMATION"]
[]
["1.  HOURS OF LABORATORY OPERATION"]
[]
[null,null,"SUN","MON","TUE","WED","THU","FRI","SAT"]
[null,"FROM"]
[null,"TO"]
[]
["For all \"Yes/ No\" boxes, please mark the appropriate box with an \"X.\""]
[]
["2.  If the laboratory is part of a larger organization, attach a chart showing its position and reporting relationships within  "]
["that organization."]
[]
["3.  Does the laboratory supervisor possess a Laboratory Technicians Certification through the Environmental Training "]
["Center?  (See Regulations 47 CSR 32, Section 3.7 for requirements)."]
["YES",null,"Certificate#    ",null,null,null,null,null,"NO","x"]
[null,null,null,null,"DOES NOT APPLY"]
[]
["4.  You will be required to test proficiency test (PT) samples.  These samples must be purchased by you from a NELAC "]
["accredited provider.  Provide the name of the PT provider you intend to use"]
["and the ID assigned to your lab by that provider",null,null,null,null,null,null,null,"."]
[]
["5.  Is the laboratory willing to send its QUALITY ASSURANCE/QUALITY CONTROL PROGRAM PLAN (QA/QCPP) "]
["and other information, such as a list of major equipment, directly to a Regional Quality Assurance Officer before the "]
["assessment? ","YES",null,"NO",null,"If YES, send manual along with the application to the Quality"]
[" Assurance Officer at the address indicated (unless you have submitted a QA/QCPP in the past 5 years).  If desired, the"]
["  manual will be returned at the time of the inspection. "]
[]
["6.  Has the AUTHORIZED REPRESENTATIVE read the state’s rule 47CSR32 \"Regulations Governing "]
["Environmental Laboratory Certification & Standards of Performance\" to ensure a basic understanding of the"]
[" certification process and the criteria for certification?",null,null,null,null,"YES",null,"NO"]
[]
["7.  Is/are (an) alternate laboratory/ laboratories used for ",null,null,null,null,"YES",null,"NO"]
[null,"some analyses?"]
[]
[]
[]
[]
["LAB NAME:"]
[]
["ADDRESS:"]
[]
["CITY, STATE, ZIP:",null,null,null,null,null,null,"PHONE:"]
[]
["CONTACT PERSON:"]
[]
["CONTACT EMAIL ADDRESS:"]
[]
["     Is the alternate laboratorycertified by WVDEP?",null,null,null,null,"YES",null,"NO"]
[]
[]
[]
[]
[]
[]
["ADDITIONAL ALTERNATE LABORATORIES"]
[]
["LAB NAME:"]
[]
["ADDRESS:"]
[]
["CITY, STATE, ZIP:",null,null,null,null,null,null,"PHONE:"]
[]
["CONTACT PERSON:"]
[]
["CONTACT EMAIL ADDRESS:"]
[]
["     Is the alternate laboratorycertified by WVDEP?",null,null,null,null,"YES",null,"NO"]
[]
[]
[]
["LAB NAME:"]
[]
["ADDRESS:"]
[]
["CITY, STATE, ZIP:",null,null,null,null,null,null,"PHONE:"]
[]
["CONTACT PERSON:"]
[]
["CONTACT EMAIL ADDRESS:"]
[]
["     Is the alternate laboratorycertified by WVDEP?",null,null,null,null,"YES",null,"NO"]
[]
[]
[]
["LAB NAME:"]
[]
["ADDRESS:"]
[]
["CITY, STATE, ZIP:",null,null,null,null,null,null,"PHONE:"]
[]
["CONTACT PERSON:"]
[]
["CONTACT EMAIL ADDRESS:"]
[]
["     Is the alternate laboratorycertified by WVDEP?",null,null,null,null,"YES",null,"NO"]
[]
[]
[]
["LAB NAME:"]
[]
["ADDRESS:"]
[]
["CITY, STATE, ZIP:",null,null,null,null,null,null,"PHONE:"]
[]
["CONTACT PERSON:"]
[]
["CONTACT EMAIL ADDRESS:"]
[]
["     Is the alternate laboratorycertified by WVDEP?",null,null,null,null,"YES",null,"NO"]
[]
["LABORATORY PERSONNEL/EDUCATION/EXPERIENCE"]
[]
["List here the persons in your laboratory under the appropriate position title.  One person may occupy more than one position,"]
[" if so, list this person under each position held."]
[]
["LABORATORY NAME (type below) (If applicable include branch name ) "]
[]
[]
[]
["Position/ Title",null,"Name",null,null,null,null,"Academic Training",null,"Experience"]
[null,null,null,null,null,null,null,"HS,BA/BS,MS,PhD",null,"Code/Year"]
["Laboratory"]
["Manager(s)"]
["Laboratory "]
["Supervisor(s)"]
["Supervisory"]
["Analyst(s)/ Technician(s)"]
["Analyst(s)/ Technician(s)"]
[]
[]
[]
[]
[]
[]
[]
[]
[]
[]
[]
[]
[]
[]
[]
[]
[]
[]
[]
[]
[]
[]
[]
[]
[]
[]
[]
[]
[]
["Support Personnel e.g. Electronics tech, Samplers, etc."]
[]
[]
[]
[]
[]
["EXPERIENCE CODES TO BE USED"]
["1-Chemistry ",null,"3-Gas Chromatography",null,null," 5-Microbiology ",null,null,"7-Radio Chemistry"]
["2-AA & ICP        ",null,"4-Mass Spectroscopy  ",null,null,"   6-Bioassay ",null,null,"8-Sampling"]
["ADDITIONAL PERSONNEL"]
[]
["Position/ Title",null,"Name",null,null,null,null,"Academic Training",null,"Experience"]
[null,null,null,null,null,null,null,"HS,BA/BS,MS,PhD",null,"Code/Year"]
[]
[]
[]
[]
[]
[]
[]
[]
[]
[]
[]
[]
[]
[]
[]
[]
[]
[]
[]
[]
[]
[]
[]
[]
[]
[]
[]
[]
[]
[]
[]
[]
[]
[]
[]
[]
[]
[]
[]
[]
[]
[]
[]
[]
[]
[]
[]
[]
["EXPERIENCE CODES TO BE USED"]
["1-Chemistry ",null,"3-Gas Chromatography",null,null," 5-Microbiology ",null,null,"7-Radio Chemistry"]
["2-AA & ICP        ",null,"4-Mass Spectroscopy  ",null,null,"   6-Bioassay ",null,null,"8-Sampling"]
["LOCATION SKETCH/MAP"]
[]
["To aid us in locating your laboratory (or branch laboratory) please provide a sketch or map of how to reach your"]
[" laboratory from some prominent landmark, highway intersection or easily found street location."]
[]
["­N"]

{"sheet":"Methods","index":1,"n_rows":688,"n_cols":25,"rows_kept":688,"cut":false,"hidden":false,"merged":[[608,0,608,3],[646,0,646,3],[647,0,647,3],[648,0,648,3],[567,0,567,3],[568,0,569,3],[595,0,595,3],[596,0,596,3],[597,0,597,3],[606,0,606,3],[607,0,607,3],[502,0,502,3],[500,0,500,3],[501,0,501,3],[398,0,398,3],[399,0,399,3],[447,0,447,3],[448,0,448,3],[566,0,566,3],[552,0,552,3],[550,0,550,3],[551,0,551,3],[318,0,318,3],[354,0,354,3],[355,0,355,3],[356,0,356,3],[320,0,320,3],[336,0,336,3],[337,0,337,3],[319,0,319,3],[357,0,357,3],[396,0,396,3],[338,0,338,3],[397,0,397,3],[280,0,280,3],[281,0,281,3],[294,0,294,3],[295,0,295,3],[296,0,296,3],[254,0,254,3],[279,0,279,3],[140,0,140,3],[141,0,141,3],[193,0,193,3],[194,0,194,3],[195,0,195,3],[236,0,236,3],[237,0,237,3],[238,0,238,3],[252,0,252,3],[253,0,253,3],[96,0,96,3],[97,0,97,3],[98,0,98,3],[99,0,99,3],[0,0,0,3],[1,0,1,3],[2,0,2,3],[3,0,3,3],[4,0,4,3],[40,0,40,3]]}
["PARAMETERS FOR WHICH YOU WISH CERTIFICATION",null,null,null,null,"Chlorine, Residual","Oxygen, Dissolved","pH","Sulfite","Temperature","Acidity","Alkalinity","Ammonia","Bromide","Chloride","Color","Conductance","Chromium, Hexavalent","Cyanide, Total","Cyanide, Weak Acid Dissociable (WAD)","Cyanide, Amenable","BOD","CBOD"]
["A method number may be entered manually or selected from the drop-down menu that appears in the cell next to the parameter/ method.  When manually entering the method number, cite the method using common abbreviations.  For example, Chloride by Mercuric Nitrate Titration, Method 4500Cl, Standard Methods for Examination of Water & Wastewater, 1997, would be cited as \"SM4500-Cl C-97.\"  If you wish to be certified for a parameter/ method not listed, use the blank lines at the end of this section to enter the parameter/ method number manually or select from the drop-down menu.",null,null,null,null,"HACH 8021","ASTM D888-09 (C)","EPA150.1 Rev 1978","HACH 8071","SM2550 B-10","SM2310 B-11","SM2320 B-11","ASTM D6919-09","ASTM D1246-10","ASTM D512-04 (A)","SM2120 B-11","EPA120.1 Rev-1982","ASTM D1687-12 (A)","ASTM D2036-09 (A)","SM4500-CN D-11","OIA 1677-09","SM5210 B-11","SM5210 B-11","NONPOTABLE WATER INORGANIC NONMETALS","NWIN master list"]
["Parameters marked *** are exempt from a parameter fee.",null,null,null,null,"HACH 10014","HACH 10360","HACH 8156","HACH 8216",null,null,null,"EPA350.1 Rev 2.0-1993","EPA300.0 Rev 2.1-1993","ASTM D512-04 (B)","SM2120 F-11","HACH 8160","EPA218.6 Rev 3.3-1994","ASTM D7284-13","SM4500-CN E-11","SM4500-CN D-11",null,null,"Acidity","ASTM 888-09 (C)"]
["Parameters marked ## may be determined by calculation.  The lab must be certified for all parameters used to perform the calculations if determined by calculation.",null,null,null,null,"HACH 10025","HACH 8157","SM4500-H B-11","SM4500-SO3 B-11",null,null,null,"HACH 10205","EPA300.1 Rev 1.0-1997","ASTM D512-04 (C)",null,"SM2510 B-11","HACH 8023","EPA335.4 Rev 1.0-1993","SM4500-CN F-11","SM4500-CN E-11",null,null,"Alkalinity","ASTM 1252-06 (B)"]
["NONPOTABLE WATER INORGANIC NONMETALS",null,null,null,null,"HACH 8167","HACH 8229","SW9040B",null,null,null,null,"HACH 8038","SM4110 B-11","EPA300.0 Rev 2.1-1993",null,"SW9050A","Lachat 10-124-13-1-A","Lachat 10-204-00-10-X",null,"SM4500-CN F-11",null,null,"Aluminum","ASTM 1252-06 (C)"]
["Parameter","Method Number","Method Number","Method Number",null,"HACH 8168","SM4500-O B-11","SW9040C",null,null,null,null,"SM4500-NH3 C-11","SM4110 C-11","EPA300.1 Rev 1.0-1997",null,null,"SM3111 C-11","SM4500-CN D-11",null,"SW9012B",null,null,"Ammonia","ASTM 1687-12 (A)"]
["Chlorine, Residual***",null,null,null,"NONPOTABLE WATER INORGANIC NONMETALS","SM4500-Cl B-11","SM4500-O C-11",null,null,null,null,null,"SM4500-NH3 D-11","SM4110 D-11","HACH 8225",null,null,"SM3500-Cr B-11","SM4500-CN E-11",null,"SW9014",null,null,"Arsenic","ASTM 3590-11 (A)"]
["Oxygen, Dissolved ***",null,null,null,"NONPOTABLE WATER INORGANIC NONMETALS","SM4500-Cl C-11","SM4500-O D-11",null,null,null,null,null,"SM4500-NH3 E-11","SW9056","Lachat 10-117-07-1-B",null,null,"SM3500-Cr C-11","SM4500-CN F-11",null,"SW9213",null,null,"Boron","ASTM D1246-10"]
["pH (Hydrogen Ion)***",null,null,null,"NONPOTABLE WATER INORGANIC NONMETALS","SM4500-Cl D-11","SM4500-O E-11",null,null,null,null,null,"SM4500-NH3 F-11","SW9056A","SM4110 B-11",null,null,"SW7196","SW9012B",null,null,null,null,"Bromide","ASTM D1252-06 (A)"]
["Sulfite***",null,null,null,"NONPOTABLE WATER INORGANIC NONMETALS","SM4500-Cl E-11","SM4500-O F-11",null,null,null,null,null,"SM4500-NH3 G-11","SW9211","SM4500-Cl B-11",null,null,"SW7196A","SW9014",null,null,null,null,"Calcium","ASTM D1429-08B"]
["Temperature***",null,null,null,"NONPOTABLE WATER INORGANIC NONMETALS","SM4500-Cl F-11","SM4500-O G-11",null,null,null,null,null,"SM4500-NH3 H-11",null,"SM4500-Cl C-11",null,null,"SW7199","SW9213",null,null,null,null,"Carbon, Total Organic (TOC)","ASTM D1687-12 (A)"]
["Acidity",null,null,null,"NONPOTABLE WATER INORGANIC NONMETALS","SM4500-Cl G-11",null,null,null,null,null,null,null,null,"SM4500-Cl D-11",null,null,"USGS 1230-85",null,null,null,null,null,"Chloride","ASTM D2036-09 (A)"]
["Alkalinity",null,null,null,"NONPOTABLE WATER INORGANIC NONMETALS",null,null,null,null,null,null,null,null,null,"SM4500-Cl E-11",null,null,null,null,null,null,null,null,"Chlorine, Residual","ASTM D512-04 (A)"]
["Ammonia",null,null,null,"NONPOTABLE WATER INORGANIC NONMETALS",null,null,null,null,null,null,null,null,null,"SW6500",null,null,null,null,null,null,null,null,"Chromium, Hexavalent","ASTM D512-04 (B)"]
["Bromide",null,null,null,"NONPOTABLE WATER INORGANIC NONMETALS",null,null,null,null,null,null,null,null,null,"SW9056",null,null,null,null,null,null,null,null,"Color","ASTM D512-04 (C)"]
["Chloride",null,null,null,"NONPOTABLE WATER INORGANIC NONMETALS",null,null,null,null,null,null,null,null,null,"SW9056A",null,null,null,null,null,null,null,null,"Conductance, Specific","ASTM D516-11"]
["Color",null,null,null,"NONPOTABLE WATER INORGANIC NONMETALS",null,null,null,null,null,null,null,null,null,"SW9212",null,null,null,null,null,null,null,null,"Copper","ASTM D6888-04"]
["Conductance, Specific",null,null,null,"NONPOTABLE WATER INORGANIC NONMETALS",null,null,null,null,null,null,null,null,null,"SW9250",null,null,null,null,null,null,null,null,"Cyanide","ASTM D7284-13"]
["Chromium, Hexavalent",null,null,null,"NONPOTABLE WATER INORGANIC NONMETALS",null,null,null,null,null,null,null,null,null,"SW9251",null,null,null,null,null,null,null,null,"Cyanide, Amenable to Chlorination","EPA 1664A"]
["Cyanide, Total",null,null,null,"NONPOTABLE WATER INORGANIC NONMETALS",null,null,null,null,null,null,null,null,null,"SW9251A",null,null,null,null,null,null,null,null,"Cyanide, Available","EPA 1664B"]
["Cyanide, Weak Acid Dissociable",null,null,null,"NONPOTABLE WATER INORGANIC NONMETALS",null,null,null,null,null,null,null,null,null,null,null,null,null,null,null,null,null,null,"Cyanide, Free","EPA120.1 Rev-1982"]
["Cyanide, Amenable to Chlorination",null,null,null,"NONPOTABLE WATER INORGANIC NONMETALS",null,null,null,null,null,null,null,null,null,null,null,null,null,null,null,null,null,null,"Cyanide, Total","EPA130.1 Rev 1971"]
["Oxygen Demand, Biochemical (BOD)",null,null,null,"NONPOTABLE WATER INORGANIC NONMETALS",null,null,null,null,null,null,null,null,null,null,null,null,null,null,null,null,null,null,"Cyanide, Weak Acid Dissociable","EPA160.4 (1974)"]
["Oxygen Demand, Carbonaceous Biochemical (CBOD)",null,null,null,"NONPOTABLE WATER INORGANIC NONMETALS","COD","Fluoride","Ca Hardness","Hardness, Total","TKN","Nitrate","Nitrate-Nitrite","Nitrite",null,null,"Phenolics, Total","Phosphorus, Ortho",null,null,null,null,null,null,"Fluoride","EPA1650"]
["Oxygen Demand, Chemical (COD)",null,null,null,"NONPOTABLE WATER INORGANIC NONMETALS","ASTM D1252-06 (A)","EPA300.0 Rev 2.1-1993","EPA130.2 Rev 1978","EPA130.1 (1971)","ASTM D3590-11 (A)","EPA300.0 Rev 2.1-1993","EPA300.0 Rev 2.1-1993","EPA300.0 Rev 2.1-1993",null,null,"EPA420.1 Rev 1978","EPA300.0 Rev 2.1-1993",null,null,null,null,null,null,"Halides, Total","EPA180.1 Rev 2.0-1993"]
["Fluoride",null,null,null,"NONPOTABLE WATER INORGANIC NONMETALS","ASTM D1252-06 (B)","EPA300.1 Rev 1.0-1997","SM2340 B-11","HACH 8226","EPA351.1 Rev 1978","EPA300.1 Rev 1.0-1997","EPA300.1 Rev 1.0-1997","EPA300.1 Rev 1.0-1997",null,null,"EPA420.4 Rev1.0-1993","EPA300.1 Rev 1.0-1997",null,null,null,null,null,null,"Halides, Total Organic","EPA300.0 Rev 2.1-1993"]
["Hardness, Calcium ##",null,null,null,"NONPOTABLE WATER INORGANIC NONMETALS","ASTM D1252-06 (C)","SM4110 B-11","SM2340 C-11","SM2340 B-11","EPA351.2 Rev 2.0-1993","EPA352.1 ","EPA353.2 Rev 2.0-1993","EPA353.2 Rev 2.0-1993","Oil & Grease",null,"HACH 8047","EPA365.1 Rev 2.0-1993","Phosphorus, Total","Silica","Solids, Dissolved","Solids, Settleable","Solids, Suspended","Solids, Total","Halogen Chlorides, Total","EPA300.1 Rev 1.0-1997"]
["Hardness, Total ##",null,null,null,"NONPOTABLE WATER INORGANIC NONMETALS","EPA410.3 (Rev 1978)","SM4500-F C-11","SM3500-Ca B-11","SM2340 C-11","SM4500-NH3 C-11","EPA353.2 Rev 2.0-1993","Lachat 10-107-04-1-C","HACH 8507","EPA1664 A",null,"Lachat 10-210-00-1-A","EPA365.3 Rev 1978","EPA365.1 Rev 2.0-1993","SM4500-SiO2 C-11","SM2540 C-11","SM2540 F-11","HACH 8158","HACH 8163","Halogens, Absorbable Organic (AOX) ","EPA310.2 Rev 2.2-1974"]
["Nitrogen, Total Kjeldahl (TKN)",null,null,null,"NONPOTABLE WATER INORGANIC NONMETALS","EPA410.4 Rev 2.0-1993","SM4500-F D-11",null,null,"SM4500-NH3 D-11","Lachat 10-107-04-1-C","SM4410 B-11","SM4110 B-11","EPA 1664 B",null,"SM5530 D-10","HACH 8048","EPA365.3 Rev 1978","SM4500-SiO2 E-11","USGS I-1750-85",null,"SM2540 D-11","SM2540 B-11","Halogens, Total Organic (TOX)","EPA314"]
["Nitrate ##",null,null,null,"NONPOTABLE WATER INORGANIC NONMETALS","HACH 8000","SM4500-F E-11",null,null,"SM4500-NH3 E-11","SM4110 B-11","SM4500-NO3 E-11","SM4500-NO3 B-11","SM5520 B-11",null,"SW8041","HACH 8190","EPA365.4 (1974)","SM4500-SiO2 F-11",null,null,"USGS I-3765-85","USGS I-3750-85","Hardness, Calcium","EPA331.0 Rev 1.0-2005"]
["Nitrate-Nitrite  ##",null,null,null,"NONPOTABLE WATER INORGANIC NONMETALS","SM5220 B-11","SW9056",null,null,"SM4500-NH3 F-11","SM4500-NO3 D-11","SM4500-NO3 F-11","SM4500-NO3 E-11","SM5520 F-11",null,"SW8041B","SM4110 B-11","HACH 8190",null,null,null,null,null,"Hardness, Total ","EPA335.4 Rev 1.0-1993"]
["Nitrite ##",null,null,null,"NONPOTABLE WATER INORGANIC NONMETALS","SM5220 C-11","SW9056A",null,null,"SM4500-NH3 G-11","SM4500-NO3 F-11","SM4500-NO3 H-11","SM4500-NO3 F-11","SW9070",null,"SW9065","SM4500-P E-11","SM4500-P E-11",null,null,null,null,null,"Iron","EPA350.1 Rev 2.0-1993"]
["Oil & Grease",null,null,null,"NONPOTABLE WATER INORGANIC NONMETALS","SM5220 D-11","SW9214",null,null,"SM4500-NH3 H-11","SW9056","SW9056","SW9056","SW9070B",null,"SW9065A","SM4500-P F-11","SM4500-P F-11",null,null,null,null,null,"Kjeldahl, Total Nitrogen","EPA351.1 Rev 1978"]
["Carbon, Total Organic (TOC)",null,null,null,"NONPOTABLE WATER INORGANIC NONMETALS",null,null,null,null,null,"SW9056A","SW9056A","SW9056A","SW9071A",null,"SW9066","SW9056",null,null,null,null,null,null,"Lead","EPA351.2 Rev 2.0-1993"]
["Phenolics, Total",null,null,null,"NONPOTABLE WATER INORGANIC NONMETALS",null,null,null,null,null,"SW9210",null,null,"SW9071B",null,null,"SW9056A",null,null,null,null,null,null,"Manganese","EPA352.1 Rev 1978"]
["Phosphorus, Ortho",null,null,null,"NONPOTABLE WATER INORGANIC NONMETALS",null,null,null,null,null,"SW9210A",null,null,null,null,null,null,null,null,null,null,null,null,"Nitrate","EPA353.2 Rev 2.0-1993"]
["Phosphorus, Total ",null,null,null,"NONPOTABLE WATER INORGANIC NONMETALS",null,null,null,null,null,null,null,null,null,null,null,null,null,null,null,null,null,null,"Nitrate-Nitrite ","EPA365.1 Rev 2.0-1993"]
["Silica ",null,null,null,null,null,null,null,null,null,null,null,null,null,null,null,null,null,null,null,null,null,null,"Nitrite","EPA365.3 Rev 1978"]
[null,null,null,null,null,null,null,null,null,null,null,null,null,null,null,null,null,null,null,null,null,null,null,"Oil & Grease","EPA365.4 (1974)"]
[null,null,null,null,null,null,null,null,null,null,null,null,null,null,"Organic Carbon, Total",null,null,null,null,null,null,null,null,"Oxidation-Reduction Potential","EPA375.2 Rev 2.0-1993"]
["NONPOTABLE WATER INORGANIC NONMETALS",null,null,null,null,null,null,null,null,null,null,null,null,null,"SM5310 B-11",null,null,null,null,null,null,null,null,"Oxygen Demand, Biochemical (BOD)","EPA377.1 Rev 1978"]
["Parameter","Method Number","Method Number","Method Number","NONPOTABLE WATER INORGANIC NONMETALS",null,null,null,null,null,null,null,null,null,"SM5310 C-11",null,null,null,null,null,null,null,null,"Oxygen Demand, Carbonaceous Biochemical (CBOD)","EPA410.3 (Rev 1978)"]
["Solids, Dissolved",null,null,null,"NONPOTABLE WATER INORGANIC NONMETALS",null,null,null,null,null,null,null,null,null,"SM5310 D-11",null,null,null,null,null,null,null,null,"Oxygen Demand, Chemical (COD)","EPA410.4 Rev 2.0-1993"]
["Solids, Settleable",null,null,null,"NONPOTABLE WATER INORGANIC NONMETALS","Solids, Volatile",null,null,null,null,null,null,null,null,"SW9060",null,null,null,null,null,null,null,null,"Oxygen, Dissolved ","EPA420.1 Rev 1978"]
["Solids, Suspended",null,null,null,"NONPOTABLE WATER INORGANIC NONMETALS","EPA160.4 (1971)","Sulfate","Sulfide","Surfactants","Turbidity",null,null,null,null,"SW9060A",null,null,null,null,null,null,null,null,"Perchlorate","EPA420.4 Rev1.0-1993"]
["Solids, Total",null,null,null,"NONPOTABLE WATER INORGANIC NONMETALS","SM2540 E-11","ASTM D516-11","HACH8131","SM5540 C-11","EPA180.1 Rev 2.0-1993",null,null,null,null,null,null,null,null,null,null,null,null,null,"Petroleum Hydrocarbons, Total","EPA450.1"]
["Solids, Volatile",null,null,null,"NONPOTABLE WATER INORGANIC NONMETALS","USGS I-3753-85","EPA300.0 Rev 2.1-1993","SM4500-S D-11",null,"HACH 8195",null,null,null,null,null,null,null,null,null,null,null,null,null,"pH (Hydrogen Ion)","EPA9020B"]
["Sulfate",null,null,null,"NONPOTABLE WATER INORGANIC NONMETALS",null,"EPA300.1 Rev 1.0-1997","SM4500-S F-11",null,"SM2130 B-11",null,null,null,null,null,null,null,null,null,null,null,null,null,"Phenolics, Total","HACH 10014"]
["Sulfide",null,null,null,"NONPOTABLE WATER INORGANIC NONMETALS",null,"EPA375.2 Rev 2.0-1993","SM4500-S G-11",null,null,null,null,null,null,null,null,null,null,null,null,null,null,null,"Phosphorus, Ortho","HACH 10025"]
["Surfactants (MBAS)",null,null,null,"NONPOTABLE WATER INORGANIC NONMETALS",null,"HACH 8051","SW9034",null,null,null,null,null,null,null,null,null,null,null,null,null,null,null,"Phosphorus, Total","HACH 10205"]
["Turbidity",null,null,null,"NONPOTABLE WATER INORGANIC NONMETALS",null,"SM4110 B-11","SW9215",null,null,null,null,null,null,null,null,null,null,null,null,null,null,null,"Silica, Dissolved","HACH 10360"]
[null,null,null,null,"NONPOTABLE WATER INORGANIC NONMETALS",null,"SM4500-SO4 C-11",null,null,null,null,null,null,null,null,null,null,null,null,null,null,null,null,"Sodium","HACH 8000"]
[null,null,null,null,"NONPOTABLE WATER INORGANIC NONMETALS",null,"SM4500-SO4 D-11",null,null,null,null,null,null,null,null,null,null,null,null,null,null,null,null,"Solids, Dissolved","HACH 8021"]
[null,null,null,null,"NONPOTABLE WATER INORGANIC NONMETALS",null,"SM4500-SO4 E-11",null,null,null,null,null,null,null,null,null,null,null,null,null,null,null,null,"Solids, Settleable","HACH 8038"]
[null,null,null,null,"NONPOTABLE WATER INORGANIC NONMETALS",null,"SM4500-SO4 F-11",null,null,null,null,null,null,null,null,null,null,null,null,null,null,null,null,"Solids, Suspended","HACH 8047"]
[null,null,null,null,"NONPOTABLE WATER INORGANIC NONMETALS",null,"SM4500-SO4 F-97",null,null,null,null,null,null,null,null,null,null,null,null,null,null,null,null,"Solids, Total","HACH 8048"]
[null,null,null,null,"NONPOTABLE WATER INORGANIC NONMETALS",null,"SW9038",null,null,null,null,null,null,null,null,null,null,null,null,null,null,null,null,"Specific Gravity","HACH 8051"]
[null,null,null,null,"NONPOTABLE WATER INORGANIC NONMETALS",null,"SW9038A",null,null,null,null,null,null,null,null,null,null,null,null,null,null,null,null,"Sulfide","HACH 8071"]
[null,null,null,null,"NONPOTABLE WATER INORGANIC NONMETALS",null,"SW9056",null,null,null,null,null,null,null,null,null,null,null,null,null,null,null,null,"Sulfide, Reactive","HACH 8156"]
[null,null,null,null,"NONPOTABLE WATER INORGANIC NONMETALS",null,"SW9056A",null,null,null,null,null,null,null,null,null,null,null,null,null,null,null,null,"Sulfite","HACH 8157"]
[null,null,null,null,"NONPOTABLE WATER INORGANIC NONMETALS",null,null,null,null,null,null,null,null,null,null,null,null,null,null,null,null,null,null,"Sulfite","HACH 8158"]
[null,null,null,null,"NONPOTABLE WATER INORGANIC NONMETALS",null,null,null,null,null,null,null,null,null,null,null,null,null,null,null,null,null,null,"Surfactants","HACH 8160"]
[null,null,null,null,"NONPOTABLE WATER INORGANIC NONMETALS",null,null,null,null,null,null,null,null,null,null,null,null,null,null,null,null,null,null,"Surfactants (CTAS)","HACH 8163"]
[null,null,null,null,"NONPOTABLE WATER INORGANIC NONMETALS",null,null,null,null,null,null,null,null,null,null,null,null,null,null,null,null,null,null,"Temperature","HACH 8167"]
[null,null,null,null,"NONPOTABLE WATER INORGANIC NONMETALS",null,null,null,null,null,null,null,null,null,null,null,null,null,null,null,null,null,null,"Trivalent Chromium","HACH 8168"]
[null,null,null,null,"NONPOTABLE WATER INORGANIC NONMETALS",null,null,null,null,null,null,null,null,null,null,null,null,null,null,null,null,null,null,"Turbidity","HACH 8190"]
[null,null,null,null,"NONPOTABLE WATER INORGANIC NONMETALS",null,null,null,null,null,null,null,null,null,null,null,null,null,null,null,null,null,null,null,"HACH 8195"]
[null,null,null,null,"NONPOTABLE WATER INORGANIC NONMETALS",null,null,null,null,null,null,null,null,null,null,null,null,null,null,null,null,null,null,null,"HACH 8216"]
[null,null,null,null,"NONPOTABLE WATER INORGANIC NONMETALS",null,null,null,null,null,null,null,null,null,null,null,null,null,null,null,null,null,null,null,"HACH 8225"]
[null,null,null,null,"NONPOTABLE WATER INORGANIC NONMETALS",null,null,null,null,null,null,null,null,null,null,null,null,null,null,null,null,null,null,null,"HACH 8226"]
[null,null,null,null,"NONPOTABLE WATER INORGANIC NONMETALS",null,null,null,null,null,null,null,null,null,null,null,null,null,null,null,null,null,null,null,"HACH 8229"]
[null,null,null,null,"NONPOTABLE WATER INORGANIC NONMETALS",null,null,null,null,null,null,null,null,null,null,null,null,null,null,null,null,null,null,null,"HACH 8507"]
[null,null,null,null,"NONPOTABLE WATER INORGANIC NONMETALS",null,null,null,null,null,null,null,null,null,null,null,null,null,null,null,null,null,null,null,"HACH8131"]
[null,null,null,null,"NONPOTABLE WATER INORGANIC NONMETALS",null,null,null,null,null,null,null,null,null,null,null,null,null,null,null,null,null,null,null,"HACH8190"]
[null,null,null,null,"NONPOTABLE WATER INORGANIC NONMETALS",null,null,null,null,null,null,null,null,null,null,null,null,null,null,null,null,null,null,null,"Lachat 10-107-04-1-C"]
[null,null,null,null,"NONPOTABLE WATER INORGANIC NONMETALS",null,null,null,null,null,null,null,null,null,null,null,null,null,null,null,null,null,null,null,"Lachat 10-117-07-1-B"]
[null,null,null,null,"NONPOTABLE WATER INORGANIC NONMETALS",null,null,null,null,null,null,null,null,null,null,null,null,null,null,null,null,null,null,null,"Lachat 10-204-00-10-X"]
[null,null,null,null,"NONPOTABLE WATER INORGANIC NONMETALS",null,null,null,null,null,null,null,null,null,null,null,null,null,null,null,null,null,null,null,"Lachat 10-210-00-1-A"]
[null,null,null,null,"NONPOTABLE WATER INORGANIC NONMETALS",null,null,null,null,null,null,null,null,null,null,null,null,null,null,null,null,null,null,null,"OIA 1677-09"]
[null,null,null,null,"NONPOTABLE WATER INORGANIC NONMETALS",null,null,null,null,null,null,null,null,null,null,null,null,null,null,null,null,null,null,null,"SM2120 B-11"]
[null,null,null,null,"NONPOTABLE WATER INORGANIC NONMETALS",null,null,null,null,null,null,null,null,null,null,null,null,null,null,null,null,null,null,null,"SM2120 C-11"]
[null,null,null,null,"NONPOTABLE WATER INORGANIC NONMETALS",null,null,null,null,null,null,null,null,null,null,null,null,null,null,null,null,null,null,null,"SM2120 E-11"]
[null,null,null,null,"NONPOTABLE WATER INORGANIC NONMETALS",null,null,null,null,null,null,null,null,null,null,null,null,null,null,null,null,null,null,null,"SM2130 B-11"]
[null,null,null,null,"NONPOTABLE WATER INORGANIC NONMETALS",null,null,null,null,null,null,null,null,null,null,null,null,null,null,null,null,null,null,null,"SM2310 B-11"]
[null,null,null,null,"NONPOTABLE WATER INORGANIC NONMETALS",null,null,null,null,null,null,null,null,null,null,null,null,null,null,null,null,null,null,null,"SM2320 B-11"]
[null,null,null,null,"NONPOTABLE WATER INORGANIC NONMETALS",null,null,null,null,null,null,null,null,null,null,null,null,null,null,null,null,null,null,null,"SM2340 B-11"]
[null,null,null,null,"NONPOTABLE WATER INORGANIC NONMETALS",null,null,null,null,null,null,null,null,null,null,null,null,null,null,null,null,null,null,null,"SM2340 C-11"]
[null,null,null,null,"NONPOTABLE WATER INORGANIC NONMETALS",null,null,null,null,null,null,null,null,null,null,null,null,null,null,null,null,null,null,null,"SM2510 B-11"]
[null,null,null,null,"NONPOTABLE WATER INORGANIC NONMETALS",null,null,null,null,null,null,null,null,null,null,null,null,null,null,null,null,null,null,null,"SM2510 B-97"]
[null,null,null,null,"NONPOTABLE WATER INORGANIC NONMETALS",null,null,null,null,null,null,null,null,null,null,null,null,null,null,null,null,null,null,null,"SM2540 B-11"]
[null,null,null,null,"NONPOTABLE WATER INORGANIC NONMETALS",null,null,null,null,null,null,null,null,null,null,null,null,null,null,null,null,null,null,null,"SM2540 B-97"]
[null,null,null,null,"NONPOTABLE WATER INORGANIC NONMETALS",null,null,null,null,null,null,null,null,null,null,null,null,null,null,null,null,null,null,null,"SM2540 C-11"]
[null,null,null,null,"NONPOTABLE WATER INORGANIC NONMETALS",null,null,null,null,null,null,null,null,null,null,null,null,null,null,null,null,null,null,null,"SM2540 C-97"]
[null,null,null,null,null,null,null,null,null,null,null,null,null,null,null,null,null,null,null,null,null,null,null,null,"SM2540 D-11"]
[null,null,null,null,null,null,null,null,null,null,null,null,null,null,null,null,null,null,null,null,null,null,null,null,"SM2540 D-97"]
[null,null,null,null,null,null,null,null,null,null,null,null,null,null,null,null,null,null,null,null,null,null,null,"NONPOTABLE WATER TRACE METALS","SM2540 E-11"]
["PARAMETERS FOR WHICH YOU WISH CERTIFICATION",null,null,null,null,"Aluminum","Antimony","Arsenic","Barium","Beryllium","Boron","Cadmium","Calcium","Chromium","Cobalt","Copper","Gold","Iron","Lead","Magnesium","Manganese","Phosphorus","All metals","Aluminum","SM2540 E-97"]
["A method number may be entered manually or selected from the drop-down menu that appears in the cell next to the parameter/ method. When manually entering the method number, cite the method using common abbreviations.  For example, Aluminum, Flame AA, Method 3111D, Standard Methods for Examination of Water and Wastewater, 1999, would be cited as “SM3111 D-99”.  If you wish to be certified for a parameter/ method not listed, use the blank lines at the end of this section to enter the parameter/ method number manually or select from the drop-down menu.",null,null,null,null,"EPA200.7 Rev 4.4-1994","EPA200.5 Rev 4.2-2003","EPA200.5 Rev 4.2-2003","EPA200.5 Rev 4.2-2003","EPA200.5 Rev 4.2-2003","SM3120 B-11","EPA200.5 Rev 4.2-2003","EPA200.5 Rev 4.2-2003","EPA200.5 Rev 4.2-2003","EPA200.5 Rev 4.2-2003","EPA200.5 Rev 4.2-2003","EPA200.8 Rev 5.4-1994","EPA200.5 Rev 4.2-2003","EPA200.5 Rev 4.2-2003","EPA200.5 Rev 4.2-2003","EPA200.5 Rev 4.2-2003","EPA200.7 Rev 4.4-1994","ASTM D1687-12 (A)","Antimony","SM2540 F-11"]
["Metals marked with + are required, if you are seeking certification for EP and/or TCLP Toxicity",null,null,null,null,"EPA200.8 Rev 5.4-1994","EPA200.7 Rev 4.4-1994","EPA200.7 Rev 4.4-1994","EPA200.7 Rev 4.4-1994","EPA200.7 Rev 4.4-1994","SM3125 B-11","EPA200.7 Rev 4.4-1994","EPA200.7 Rev 4.4-1994","EPA200.7 Rev 4.4-1994","EPA200.7 Rev 4.4-1994","EPA200.7 Rev 4.4-1994","SM3111 B-11","EPA200.7 Rev 4.4-1994","EPA200.7 Rev 4.4-1994","EPA200.7 Rev 4.4-1994","EPA200.7 Rev 4.4-1994","SW6010B","ASTM D3373-12","Arsenic ","SM2540 F-97"]
["NONPOTABLE WATER TRACE METALS",null,null,null,null,"EPA200.9 Rev 2.2-1994","EPA200.8 Rev 5.4-1994","EPA200.8 Rev 5.4-1994","EPA200.8 Rev 5.4-1994","EPA200.8 Rev 5.4-1994","SW6010B","EPA200.8 Rev 5.4-1994","EPA200.8 Rev 5.4-1994","EPA200.8 Rev 5.4-1994","EPA200.8 Rev 5.4-1994","EPA200.8 Rev 5.4-1994","SM3113 B-10","EPA200.8 Rev 5.4-1994","EPA200.8 Rev 5.4-1994","EPA200.8 Rev 5.4-1994","EPA200.8 Rev 5.4-1994","SW6010C","EPA1630","Barium","SM2550 B-10"]
["Parameter","Method Number","Method Number","Method Number",null,"SM3111 D-11","EPA200.9 Rev 2.2-1994","EPA200.9 Rev 2.2-1994","SM3111 D-11","EPA200.9 Rev 2.2-1994","SW6010C","EPA200.9 Rev 2.2-1994","SM3111 B-11","EPA200.9 Rev 2.2-1994","EPA200.9 Rev 2.2-1994","EPA200.9 Rev 2.2-1994","SM3125 B-11","EPA200.9 Rev 2.2-1994","EPA200.9 Rev 2.2-1994","SM3111 B-11","EPA200.9 Rev 2.2-1994","SW6010D","EPA1631 E","Beryllium","SM3500-Al B-11"]
["Aluminum",null,null,null,"NONPOTABLE WATER TRACE METALS","SM3113 B-10","SM3111 B-11","SM3113 B-10","SM3113 B-10","SM3111 D-11","SW6010D","SM3111 B-11","SM3120 B-11","SM3111 B-11","SM3111 B-11","SM3111 B-11","SW6010B","SM3111 B-11","SM3111 B-11","SM3120 B-11","SM3111 B-11",null,"EPA1669","Boron","SM3500-As B-11"]
["Antimony",null,null,null,"NONPOTABLE WATER TRACE METALS","SM3120 B-11","SM3113 B-10","SM3114 B-11(4.d)","SM3120 B-11","SM3113 B-10","SW6020","SM3113 B-10","SM3125 B-11","SM3111 C-11","SM3111 C-11","SM3111 C-11","SW6010C","SM3111 C-11","SM3111 C-11","SM3125 B-11","SM3113 B-10",null,"EPA200.5 Rev 4.2-2003","Cadmium","SM3500-Ca B-11"]
["Arsenic +",null,null,null,"NONPOTABLE WATER TRACE METALS","SM3125 B-11","SM3120 B-11","SM3114 C-11","SM3125 B-11","SM3120 B-11","SW6020A","SM3120-B-11","SW6010B","SM3113 B-10","SM3113 B-10","SM3113 B-10","SW6010D","SM3113 B-10","SM3113 B-10","SW6010B","SM3120 B-11",null,"EPA200.7 Rev 4.4-1994","Calcium","SM3500-Cr B-11"]
["Barium+",null,null,null,"NONPOTABLE WATER TRACE METALS","SW6010B","SM3125 B-11","SM3120 B-11","SW6010B","SM3125 B-11","SW6020B","SM3125 B-11","SW6010C","SM3120 B-11","SM3120 B-11","SM3120 B-11","SW6020","SM3120 B-11","SM3120 B-11","SW6010C","SM3125 B-11",null,"EPA200.8 Rev 5.4-1994","Cesium","SM3500-Cr C-11"]
["Beryllium",null,null,null,"NONPOTABLE WATER TRACE METALS","SW6010C","SW6010B","SM3125 B-11","SW6010C","SW6010B",null,"SW6010B","SW6010D","SM3125 B-11","SM3125 B-11","SM3125 B-11","SW6020A","SM3125 B-11","SM3125 B-11","SW6010D","SW6010B",null,"EPA200.9 Rev 2.2-1994","Chromium","SM3500-Cu B-11"]
["Boron",null,null,null,"NONPOTABLE WATER TRACE METALS","SW6010D","SW6010C","SW6010B","SW6010D","SW6010C",null,"SW6010C","SW6020","SW6010B","SW6010B","SW6010B","SW6020B","SW6010B","SW6010B","SW6020","SW6010C",null,"EPA245.1 Rev 3.0-1994","Cobalt","SM3500-Cu C-11"]
["Cadmium+",null,null,null,"NONPOTABLE WATER TRACE METALS","SW6020","SW6010D","SW6010C","SW6020","SW6010D",null,"SW6010D","SW6020A","SW6010C","SW6010C","SW6010C",null,"SW6010C","SW6010C","SW6020A","SW6010D",null,"EPA245.2 (1974)","Copper","SM3500-Fe B-11"]
["Calcium",null,null,null,"NONPOTABLE WATER TRACE METALS","SW6020A","SW6020","SW6010D","SW6020A","SW6020",null,"SW6020","SW6020B","SW6010D","SW6010D","SW6010D",null,"SW6010D","SW6010D","SW6020B","SW6020","Lithium","EPA245.5","Germanium","SM3500-Mn B-11"]
["Chromium",null,null,null,"NONPOTABLE WATER TRACE METALS","SW6020B","SW6020A","SW6020","SW6020B","SW6020A",null,"SW6020A","SW7000A","SW6020","SW6020","SW6020",null,"SW6020","SW6020","SW7000A","SW6020A","SW6020","EPA245.7","Gold","SM3500-Na B-11"]
["Chromium, Hexavalent",null,null,null,"NONPOTABLE WATER TRACE METALS","SW7000A","SW6020B","SW6020A","SW7000A","SW6020B",null,"SW6020B","SW7000B","SW6020A","SW6020A","SW6020A",null,"SW6020A","SW6020A","SW7000B","SW6020B","SW6020A","EPA279.2 (1978)","Iron","SM3500-Pb B-11"]
["Cobalt",null,null,null,"NONPOTABLE WATER TRACE METALS","SW7000B","SW7000A","SW6020B","SW7000B","SW7000B",null,"SW7000A","SW7010","SW6020B","SW6020B","SW6020B",null,"SW6020B","SW6020B","SW7010","SW7000A","SW6020B","EPA283.2 (1978)","Lead","SM4110 B-11"]
["Copper",null,null,null,"NONPOTABLE WATER TRACE METALS","SW7010","SW7000B","SW7000A","SW7010","SW7010",null,"SW7000B",null,"SW7000A","SW7000B","SW7000A",null,"SW7000A","SW7000A",null,"SW7000B","Cesium","SM3111 B-11","Lithium","SM4500-B B-11"]
["Gold",null,null,null,"NONPOTABLE WATER TRACE METALS",null,"SW7010","SW7000B",null,null,null,"SW7010",null,"SW7000B","SW7010","SW7000B",null,"SW7000B","SW7000B",null,"SW7010","SW6020","SM3111 C-11","Magnesium","SM4500-Cl B-11"]
["Iron",null,null,null,"NONPOTABLE WATER TRACE METALS",null,null,"SW7010",null,null,null,"SW7131A",null,"SW7010",null,"SW7010",null,"SW7010","SW7010",null,null,"SW6020A","SM3111 D-11","Manganese","SM4500-Cl C-11"]
["Lead+",null,null,null,"NONPOTABLE WATER TRACE METALS",null,null,"SW7060A",null,null,null,null,null,null,null,"SW7211",null,null,"SW7421",null,null,null,"SM3112 B-11","Mercury","SM4500-Cl D-11"]
["Magnesium",null,null,null,"NONPOTABLE WATER TRACE METALS",null,null,"SW7061A",null,null,null,null,null,null,null,null,null,null,null,null,null,null,"SM3113 B-10","Methyl Mercury","SM4500-Cl E-11"]
["Manganese",null,null,null,"NONPOTABLE WATER TRACE METALS",null,null,null,null,null,null,null,null,null,null,null,null,null,null,null,null,null,"SM3114 B-11","Molybdenum","SM4500-Cl F-11"]
["Mercury+",null,null,null,"NONPOTABLE WATER TRACE METALS",null,null,null,null,null,null,null,null,null,null,null,null,null,null,null,null,null,"SM3114 B-11 (4.d)","Nickel","SM4500-Cl G-11"]
["Molybdenum",null,null,null,"NONPOTABLE WATER TRACE METALS",null,"Molybdenum",null,"Palladium","Platinum","Potassium",null,"Silicon",null,"Sodium",null,"Thallium",null,null,"Vanadium","Zinc",null,"SM3120 B-11","Palladium","SM4500-CN D-11"]
["Nickel",null,null,null,"NONPOTABLE WATER TRACE METALS",null,"EPA200.7 Rev 4.4-1994",null,"SM3111 B-11","SM3111 B-11","EPA200.7 Rev 4.4-1994",null,"EPA200.5 Rev 4.2-2003",null,"EPA200.5 Rev 4.2-2003",null,"EPA200.7 Rev 4.4-1994",null,null,"ASTM D3373-12","EPA200.5 Rev 4.2-2003",null,"SM3125 B-11","Phosphorus","SM4500-CN E-11"]
["Palladium",null,null,null,"NONPOTABLE WATER TRACE METALS",null,"EPA200.8 Rev 5.4-1994",null,"SM3125 B-11","SM3125 B-11","EPA200.8 Rev 5.4-1994",null,"EPA200.7 Rev 4.4-1994",null,"EPA200.7 Rev 4.4-1994",null,"EPA200.8 Rev 5.4-1994",null,null,"EPA200.5 Rev 4.2-2003","EPA200.7 Rev 4.4-1994",null,"SW6010B","Platinum","SM4500-CN F-11"]
["Phosphorus",null,null,null,"NONPOTABLE WATER TRACE METALS",null,"SM3111 D-11",null,"SW6010C","SW6010C","SM3111 B-11",null,"EPA200.8 Rev 5.4-1994",null,"EPA200.8 Rev 5.4-1994",null,"EPA200.9 Rev 2.2-1994",null,null,"EPA200.7 Rev 4.4-1994","EPA200.8 Rev 5.4-1994",null,"SW6010C","Potassium","SM4500-F C-11"]
["Platinum",null,null,null,"NONPOTABLE WATER TRACE METALS",null,"SM3113 B-10",null,"SW6010D","SW6010D","SM3120 B-11",null,"SM3120 B-11",null,"SM3111 B-11",null,"EPA279.2 (1978)",null,null,"EPA200.8 Rev 5.4-1994","EPA289.2 (1978)",null,"SW6010D","Sampling, Ambient Water","SM4500-F D-11"]
["Potassium",null,null,null,"NONPOTABLE WATER TRACE METALS","Mercury","SM3120 B-11",null,"SW6020","SW6020",null,null,"SM3125 B-11",null,"SM3120 B-11",null,"SM3111 B-11",null,null,"SM3111 D-11","SM3111 B-11",null,"SW6020","Selenium","SM4500-F E-11"]
["Selenium+",null,null,null,"NONPOTABLE WATER TRACE METALS","EPA1631 E","SM3125 B-11",null,"SW6020A","SW6020A","SM3125 B-11","Selenium","SW6010B","Silver","SM3125 B-11",null,"SM3113 B-10",null,null,"SM3113 B-10","SM3111 C-11",null,"SW6020A","Silicon","SM4500-H B-11"]
["Silicon",null,null,null,"NONPOTABLE WATER TRACE METALS","EPA245.1 Rev 3.0-1994","SW6010B",null,"SW6020B","SW6020B",null,"EPA200.5 Rev 4.2-2003","SW6010C","EPA200.5 Rev 4.2-2003","SW6010B","Strontium","SM3120 B-11",null,"Titanium","SM3120 B-11","SM3120 B-11",null,"SW6020B","Silver","SM4500-NH3 C-11"]
["Silver+",null,null,null,"NONPOTABLE WATER TRACE METALS","EPA245.2 (1974)","SW6010C",null,null,null,"SM3500-K B-11","EPA200.7 Rev 4.4-1994","SW6010D","EPA200.7 Rev 4.4-1994","SW6010C","SM3111 B-11","SM3125 B-11",null,"EPA200.7 Rev 4.4-1994","SM3125 B-11","SM3125 B-11",null,"SW7000A","Sodium","SM4500-NH3 D-11"]
["Sodium",null,null,null,"NONPOTABLE WATER TRACE METALS","EPA245.7 Rev 2.0-2005","SW6010D",null,null,null,null,"EPA200.8 Rev 5.4-1994","SW6020","EPA200.8 Rev 5.4-1994","SW6010D","SM3120 B-11","SW6010B",null,"EPA200.8 Rev 5.4-1994","SW6010B","SW6010B",null,"SW7000B","Strontium","SM4500-NH3 E-11"]
["Strontium",null,null,null,"NONPOTABLE WATER TRACE METALS","SM3112 B-11","SW6020","Nickel",null,null,"SM3500-K C-11","EPA200.9 Rev 2.2-1994","SW6020A","EPA200.9 Rev 2.2-1994","SW6020","SW6010B","SW6010C",null,"EPA283.2 (1978)","SW6010C","SW6010C",null,"SW7010","Sulfur","SM4500-NH3 F-11"]
["Sulfate",null,null,null,"NONPOTABLE WATER TRACE METALS","SW6020","SW6020A","EPA200.5 Rev 4.2-2003",null,null,null,"SM3111 C-11","SW6020B","SM3111 B-11","SW6020A","SW6010C","SW6010D",null,"SM3111 D-11","SW6010D","SW6010D",null,"SW7196","Thallium","SM4500-NH3 G-11"]
["Thallium",null,null,null,"NONPOTABLE WATER TRACE METALS","SW6020A","SW6020B","EPA200.7 Rev 4.4-1994",null,null,"SW6010B","SM3113 B-10",null,"SM3111 C-11","SW6020B","SW6010D","SW6020","Tin","SM3120 B-11","SW6020","SW6020",null,"SW7196A","Tin","SM4500-NH3 H-11"]
["Tin",null,null,null,"NONPOTABLE WATER TRACE METALS","SW6020B","SW7000A","EPA200.8 Rev 5.4-1994",null,null,"SW6010C","SM3114 B-11(4.d)",null,"SM3113 B-10","SW7000A","SW6020","SW6020A","EPA200.5 Rev 4.2-2003","SM3125 B-11","SW6020A","SW6020A",null,"SW7470A","Titanium","SM4500-NO2 B-11"]
["Titanium",null,null,null,"NONPOTABLE WATER TRACE METALS","SW7470A","SW7000B","EPA200.9 Rev 2.2-1994",null,null,"SW6010D","SM3120 B-11",null,"SM3120 B-11","SW7000B","SW6020A","SW6020B","EPA200.7 Rev 4.4-1994","SW6010B","SW6020B","SW6020B",null,"SW7471B","Uranium","SM4500-NO3 D-11"]
["Vanadium",null,null,null,"NONPOTABLE WATER TRACE METALS","SW7471B","SW7010","SM3111 B-11",null,null,"SW6020","SM3125 B-11",null,"SM3125 B-11","SW7010","SW6020B","SW7000A","EPA200.8 Rev 5.4-1994","SW6010C","SW7000B","SW7000A",null,null,"Vanadium","SM4500-NO3 E-11"]
["Zinc",null,null,null,"NONPOTABLE WATER TRACE METALS",null,null,"SM3111 C-11",null,null,"SW6020A","SW6010B",null,"SW6010B",null,null,"SW7000B","EPA200.9 Rev 2.2-1994","SW6010D","SW7010","SW7000B",null,null,"Zinc","SM4500-NO3 F-11"]
[null,null,null,null,null,null,null,"SM3113 B-10",null,null,"SW6020B","SW6010C",null,"SW6010C",null,null,"SW7010","SM3111 B-11","SW6020",null,"SW7010",null,null,"Zirconium","SM4500-NO3 H-11"]
[null,null,null,null,null,null,null,"SM3120 B-11",null,null,"SW7000A","SW6010D",null,"SW6010D",null,null,"SW7841","SM3113 B-10","SW6020A",null,null,null,null,null,"SM4500-O B-11"]
[null,null,null,null,null,null,null,"SM3125 B-11",null,null,"SW7000B","SW6020",null,"SW6020",null,null,null,"SM3120 B-11","SW6020B",null,null,null,null,null,"SM4500-O C-11"]
[null,null,null,null,null,null,null,"SW6010B",null,null,"SW7010","SW6020A",null,"SW6020A",null,null,null,"SM3125 B-11",null,null,null,null,null,null,"SM4500-O D-11"]
["NONPOTABLE WATER TRACE METALS",null,null,null,null,null,null,"SW6010C",null,null,null,"SW6020B",null,"SW6020B",null,null,null,"SW6010B",null,null,null,null,null,null,"SM4500-O E-11"]
["(Additional parameters)",null,null,null,null,null,null,"SW6010D",null,null,null,"SW7000A",null,"SW7000A",null,null,null,"SW6010C",null,null,null,null,null,null,"SM4500-O F-11"]
["Parameter","Method Number","Method Number","Method Number",null,null,null,"SW6020",null,null,null,"SW7000B",null,"SW7000B",null,null,null,"SW6010D",null,null,null,null,null,null,"SM4500-O G-11"]
[null,null,null,null,"NONPOTABLE WATER TRACE METALS",null,null,"SW6020A",null,null,null,"SW7010",null,"SW7010",null,null,null,"SW6020",null,null,null,null,null,null,"SM4500-P E-11"]
[null,null,null,null,"NONPOTABLE WATER TRACE METALS",null,null,"SW6020B",null,null,null,"SW7740",null,"SW7761",null,null,null,"SW6020A",null,null,null,null,null,null,"SM4500-P F-11"]
[null,null,null,null,"NONPOTABLE WATER TRACE METALS",null,null,"SW7000A",null,null,null,"SW7741A",null,null,null,null,null,"SW6020B",null,null,null,null,null,null,"SM4500-S D-11"]
[null,null,null,null,"NONPOTABLE WATER TRACE METALS",null,null,"SW7000B",null,null,null,"SW7742",null,null,null,null,null,null,null,null,null,null,null,null,"SM4500-S F-11"]
[null,null,null,null,"NONPOTABLE WATER TRACE METALS",null,null,"SW7010",null,null,null,null,null,null,null,null,null,null,null,null,null,null,null,null,"SM4500-S G-11"]
[null,null,null,null,"NONPOTABLE WATER TRACE METALS",null,null,null,null,null,null,null,null,null,null,null,null,null,null,null,null,null,null,null,"SM4500-SiO2 C-11"]
[null,null,null,null,"NONPOTABLE WATER TRACE METALS",null,null,null,null,null,null,null,null,null,null,null,null,null,null,null,null,null,null,null,"SM4500-SiO2 E-11"]
[null,null,null,null,"NONPOTABLE WATER TRACE METALS",null,null,null,null,null,null,null,null,null,null,null,null,null,null,null,null,null,null,null,"SM4500-SiO2 F-11"]
[null,null,null,null,"NONPOTABLE WATER TRACE METALS",null,null,null,null,null,null,null,null,null,null,null,null,null,null,null,null,null,null,null,"SM4500-SO3 B-11"]
[null,null,null,null,"NONPOTABLE WATER TRACE METALS",null,null,null,null,null,null,null,null,null,null,null,null,null,null,null,null,null,null,null,"SM4500-SO4 C-11"]
[null,null,null,null,"NONPOTABLE WATER TRACE METALS",null,null,null,null,null,null,null,null,null,null,null,null,null,null,null,null,null,null,null,"SM4500-SO4 D-11"]
[null,null,null,null,"NONPOTABLE WATER TRACE METALS",null,null,null,null,null,null,null,null,null,null,null,null,null,null,null,null,null,null,null,"SM4500-SO4 E-11"]
[null,null,null,null,"NONPOTABLE WATER TRACE METALS",null,null,null,null,null,null,null,null,null,null,null,null,null,null,null,null,null,null,null,"SM4500-SO4 F-11"]
[null,null,null,null,"NONPOTABLE WATER TRACE METALS",null,null,null,null,null,null,null,null,null,null,null,null,null,null,null,null,null,null,null,"SM4500-SO4 G-11"]
[null,null,null,null,"NONPOTABLE WATER TRACE METALS",null,null,null,null,null,null,null,null,null,null,null,null,null,null,null,null,null,null,null,"SM5210 B-11"]
[null,null,null,null,"NONPOTABLE WATER TRACE METALS",null,null,null,null,null,null,null,null,null,null,null,null,null,null,null,null,null,null,null,"SM5220 B-11"]
[null,null,null,null,"NONPOTABLE WATER TRACE METALS",null,null,null,null,null,null,null,null,null,null,null,null,null,null,null,null,null,null,null,"SM5220 C-11"]
[null,null,null,null,"NONPOTABLE WATER TRACE METALS",null,null,null,null,null,null,null,null,null,null,null,null,null,null,null,null,null,null,null,"SM5220 D-11"]
[null,null,null,null,"NONPOTABLE WATER TRACE METALS",null,null,null,null,null,null,null,null,null,null,null,null,null,null,null,null,null,null,null,"SM5310 B-11"]
[null,null,null,null,"NONPOTABLE WATER TRACE METALS",null,null,null,null,null,null,null,null,null,null,null,null,null,null,null,null,null,null,null,"SM5310 C-11"]
[null,null,null,null,"NONPOTABLE WATER TRACE METALS",null,null,null,null,null,null,null,null,null,null,null,null,null,null,null,null,null,null,null,"SM5310 D-11"]
[null,null,null,null,"NONPOTABLE WATER TRACE METALS",null,null,null,null,null,null,null,null,null,null,null,null,null,null,null,null,null,null,null,"SM5520 B-11"]
[null,null,null,null,"NONPOTABLE WATER TRACE METALS",null,null,null,null,null,null,null,null,null,null,null,null,null,null,null,null,null,null,null,"SM5520 F-11"]
[null,null,null,null,"NONPOTABLE WATER TRACE METALS",null,null,null,null,null,null,null,null,null,null,null,null,null,null,null,null,null,null,null,"SM5530 D-10"]
[null,null,null,null,"NONPOTABLE WATER TRACE METALS",null,null,null,null,null,null,null,null,null,null,null,null,null,null,null,null,null,null,null,"SM5540 C-11"]
[null,null,null,null,"NONPOTABLE WATER TRACE METALS",null,null,null,null,null,null,null,null,null,null,null,null,null,null,null,null,null,null,null,"SW6500"]
[null,null,null,null,"NONPOTABLE WATER TRACE METALS",null,null,null,null,null,null,null,null,null,null,null,null,null,null,null,null,null,null,null,"SW6850"]
[null,null,null,null,"NONPOTABLE WATER TRACE METALS",null,null,null,null,null,null,null,null,null,null,null,null,null,null,null,null,null,null,null,"SW8041"]
[null,null,null,null,"NONPOTABLE WATER TRACE METALS",null,null,null,null,null,null,null,null,null,null,null,null,null,null,null,null,null,null,null,"SW8041B"]
[null,null,null,null,"NONPOTABLE WATER TRACE METALS",null,null,null,null,null,null,null,null,null,null,null,null,null,null,null,null,null,null,null,"SW9012B"]
[null,null,null,null,"NONPOTABLE WATER TRACE METALS",null,null,null,null,null,null,null,null,null,null,null,null,null,null,null,null,null,null,null,"SW9014"]
[null,null,null,null,"NONPOTABLE WATER TRACE METALS",null,null,null,null,null,null,null,null,null,null,null,null,null,null,null,null,null,null,null,"SW9034"]
[null,null,null,null,"NONPOTABLE WATER TRACE METALS",null,null,null,null,null,null,null,null,null,null,null,null,null,null,null,null,null,null,null,"SW9034A"]
[null,null,null,null,"NONPOTABLE WATER TRACE METALS",null,null,null,null,null,null,null,null,null,null,null,null,null,null,null,null,null,null,null,"SW9038"]
[null,null,null,null,"NONPOTABLE WATER TRACE METALS",null,null,null,null,null,null,null,null,null,null,null,null,null,null,null,null,null,null,null,"SW9038A"]
[null,null,null,null,"NONPOTABLE WATER TRACE METALS",null,null,null,null,null,null,null,null,null,null,null,null,null,null,null,null,null,null,null,"SW9040B"]
[null,null,null,null,"NONPOTABLE WATER TRACE METALS",null,null,null,null,null,null,null,null,null,null,null,null,null,null,null,null,null,null,null,"SW9040C"]
[null,null,null,null,"NONPOTABLE WATER TRACE METALS",null,null,null,null,null,null,null,null,null,null,null,null,null,null,null,null,null,null,null,"SW9050A"]
[null,null,null,null,"NONPOTABLE WATER TRACE METALS",null,null,null,null,null,null,null,null,null,null,null,null,null,null,null,null,null,null,null,"SW9056"]
[null,null,null,null,"NONPOTABLE WATER TRACE METALS",null,null,null,null,null,null,null,null,null,null,null,null,null,null,null,null,null,null,null,"SW9056A"]
[null,null,null,null,"NONPOTABLE WATER TRACE METALS",null,null,null,null,null,null,null,null,null,null,null,null,null,null,null,null,null,null,null,"SW9065"]
[null,null,null,null,"NONPOTABLE WATER TRACE METALS",null,null,null,null,null,null,null,null,null,null,null,null,null,null,null,null,null,null,null,"SW9065A"]
[null,null,null,null,"NONPOTABLE WATER TRACE METALS",null,null,null,null,null,null,null,null,null,null,null,null,null,null,null,null,null,null,null,"SW9066"]
[null,null,null,null,"NONPOTABLE WATER TRACE METALS",null,null,null,null,null,null,null,null,null,null,null,null,null,null,null,null,null,null,null,"SW9070"]
[null,null,null,null,null,null,null,null,null,null,null,null,null,null,null,null,null,null,null,null,null,null,null,null,"SW9070B"]
[null,null,null,null,null,null,null,null,null,null,null,null,null,null,null,null,null,null,null,null,null,null,null,null,"SW9071A"]
[null,null,null,null,null,null,null,null,null,null,null,null,null,null,null,null,null,null,null,null,null,null,null,null,"SW9071B"]
[null,null,null,null,null,null,null,null,null,null,null,null,null,null,null,null,null,null,null,null,null,null,null,null,"SW9210"]
[null,null,null,null,null,null,null,null,null,null,null,null,null,null,null,null,null,null,null,null,null,null,null,null,"SW9210A"]
[null,null,null,null,null,null,null,null,null,null,null,null,null,null,null,null,null,null,null,null,null,null,null,null,"SW9211"]
["PARAMETERS FOR WHICH YOU WISH CERTIFICATION",null,null,null,null,null,null,null,null,null,null,null,null,null,null,null,null,null,null,null,null,null,null,null,"SW9212"]
["A method number may be entered manually or selected from the drop-down menu that appears in the cell next to the parameter/ method.  When manually entering the method number, cite the method using common abbreviations.  For example, Fecal Coliform by Membrane Filter (MF), Method 9222D, Standard Methods for Examination of Water and Wastewater, 1997, would be cited as “SM9222 D-97”.  If you wish to be certified for a parameter/ method not listed, use the blank lines at the end of this section to enter the parameter/ method number manually or select from the drop-down menu.",null,null,null,null,null,null,null,"Total Coliform (MPN)",null,null,null,null,null,null,null,null,null,null,null,null,null,null,null,"SW9213"]
["NONPOTABLE WATER MICROBIOLOGY",null,null,null,null,null,null,null,"Colilert",null,null,null,null,null,null,null,null,null,null,null,null,null,null,null,"SW9214"]
["Parameter","Method Number","Method Number","Method Number",null,null,null,null,"Colilert-18",null,null,null,null,null,null,null,null,null,null,null,null,null,null,"NONPOTABLE WATER MICROBIOLOGY","SW9215"]
["Coliform, Fecal (MF)",null,null,null,"NONPOTABLE WATER MICROBIOLOGY",null,null,null,"mColiBlue-24",null,null,null,null,null,null,null,null,null,null,null,null,null,null,"Fecal Coliform (MF)","SW9250"]
["Coliform, Fecal (MPN)",null,null,null,"NONPOTABLE WATER MICROBIOLOGY","Fecal Coliform (MF)","Fecal Coliform (MPN)","Total Coliform (MF)","SM9221 B-06","Fecal Streptococci (MF)","Fecal Streptococci (MPN)","Heterotrophic Plate Count (HPC)","MICROBIOLOGY WATER MASTER LIST","MICROBIOLOGY MASTER TEST LIST",null,null,null,null,null,null,null,null,null,"Fecal Coliform (MPN)","SW9251"]
["Coliform, Total (MF)",null,null,null,"NONPOTABLE WATER MICROBIOLOGY","Colilert","Colilert","SM9222 B-06","SM9223 B-04","SM9230 C-07","SM9230 B-07","SM9215 B-88","Coliform, Fecal (MF)","Colilert",null,null,null,null,null,null,null,null,null,"Total Coliform (MF)","SW9251A"]
["Coliform, Total (MPN)",null,null,null,"NONPOTABLE WATER MICROBIOLOGY","Colilert-18","Colilert-18",null,null,null,null,"SM9215 D-88","Coliform, Fecal (MPN)","Colilert-18",null,null,null,null,null,null,null,null,null,"Total Coliform (MPN)","USGS I-1750-85"]
["Streptococci, Fecal (MF)",null,null,null,"NONPOTABLE WATER MICROBIOLOGY","mColiBlue-24","mColiBlue-24",null,null,null,null,"SM9215 B-94","Coliform, Total (MF)","HACH 10029",null,null,null,null,null,null,null,null,null,"Fecal Streptococci (MF)","USGS I-3750-85"]
["Streptococci, Fecal (MPN)",null,null,null,"NONPOTABLE WATER MICROBIOLOGY","SM9222 D-06","SM9221 C-06",null,null,null,null,"SM9215 D-94","Coliform, Total (MPN)","mColiBlue-24",null,null,null,null,null,null,null,null,null,"Fecal Streptococci (MPN)","USGS I-3753-85"]
["Heterotrophic Plate Count (HPC)",null,null,null,"NONPOTABLE WATER MICROBIOLOGY",null,"SM9221 E-06",null,null,null,null,"SM9215 B-00","E. Coli (MF)","mColiBlue-24",null,null,null,null,null,null,null,null,null,"Heterotrophic Plate Count (HPC)","USGS I-3765-85"]
[null,null,null,null,"NONPOTABLE WATER MICROBIOLOGY",null,"SM9223 B-04",null,null,null,null,"SM9215 D-00","E. Coli (MPN)","SM9221 B-06"]
[null,null,null,null,"NONPOTABLE WATER MICROBIOLOGY",null,null,null,null,null,null,"SM9215 B-04","Heterotrophic Plate Count (HPC)","SM9221 C-06"]
[null,null,null,null,"NONPOTABLE WATER MICROBIOLOGY",null,null,null,null,null,null,"SM9215 D-04","Streptococci, Fecal (MF)","SM9221 E-06"]
[null,null,null,null,"NONPOTABLE WATER MICROBIOLOGY",null,null,null,null,null,null,null,"Streptococci, Fecal (MPN)","SM9222 B-97"]
[null,null,null,null,"NONPOTABLE WATER MICROBIOLOGY",null,null,null,"Extractable & SVOCs",null,null,null,null,"SM9222 D-97"]
[null,null,null,null,"NONPOTABLE WATER MICROBIOLOGY",null,null,null,"#010-008-046",null,null,null,null,"SM9223 B-04"]
[null,null,null,null,null,null,null,null,"01M-008-046 (Rev 1)",null,null,null,null,"SM9223 B-04"]
[null,null,null,null,null,null,null,null,"EPA1653",null,null,null,null,"SM9230 B-07"]
[null,null,null,null,null,null,null,null,"EPA1657A",null,null,null,null,"SM9230 C-07"]
[null,null,null,null,null,null,null,null,"EPA1668A",null,null,null,null,"SM9215 B-88"]
[null,null,null,null,null,null,null,null,"EPA1671",null,null,null,null,"SM9215 D-88"]
[null,null,null,null,null,null,null,null,"EPA353.2 Rev 2.0-1993",null,null,null,null,"SM9215 B-94"]
[null,null,null,null,null,null,null,null,"EPA504",null,null,null,null,"SM9215 D-94"]
[null,null,null,null,null,null,null,null,"EPA504.1",null,null,null,null,"SM9215 B-00"]
[null,null,null,null,null,null,null,null,"EPA531.1 LC",null,null,null,null,"SM9215 D-00"]
[null,null,null,null,null,null,null,null,"EPA531.2 LC",null,null,null,null,"SM9215 B-04"]
[null,null,null,null,null,null,null,null,"EPA604",null,null,null,null,"SM9215 D-04"]
[null,null,null,null,null,null,null,null,"EPA605"]
[null,null,null,null,null,null,null,null,"EPA606"]
[null,null,null,null,null,null,null,null,"EPA607"]
[null,null,null,null,null,null,null,null,"EPA608"]
[null,null,null,null,null,null,null,null,"EPA609"]
[null,null,null,null,null,null,null,null,"EPA610"]
[null,null,null,null,null,null,null,null,"EPA611"]
[null,null,null,null,null,null,null,null,"EPA612"]
[null,null,null,null,null,null,null,null,"EPA613"]
[null,null,null,null,null,null,null,null,"EPA614"]
[null,null,null,null,null,null,null,null,"EPA615"]
[null,null,null,null,null,null,null,null,"EPA617"]
[null,null,null,null,null,null,null,null,"EPA625.1"]
[null,null,null,null,null,null,null,null,"Risher Method"]
[null,null,null,null,null,null,null,null,"SM6630 B-07"]
["METHODS FOR WHICH YOU WISH CERTIFICATION",null,null,null,null,"VOCs",null,"EXTRACTABLE & SVOC PARAMETERS","SM6630 C-07"]
["A method number may be entered manually or selected from the drop-down menu that appears in the cell next to the parameter/ method. When manually entering the method number, cite the method using common abbreviations. For example, Purgeables by Chromatography(GC)/Mass Spectrometry(MS) would be listed as “EPA624”, or Standard Methods for Examination of Water and Wastewater, 1997, would be cited as “SM6200 B-97”.  If you wish to be certified for a parameter/ method not listed, use the blank lines at the end of this section to enter the parameter/ method number manually or select from the drop-down menu.",null,null,null,null,"EPA1666",null,"2,3,7,8-Tetrachlorodibenzo-p-Dioxin","SM6640 B-06"]
["NONPOTABLE WATER VOLATILE ORGANIC CHEMICALS",null,null,null,null,"EPA601",null,"Acrylamide","SOP DV-LC-0012"]
["Parameter","Method Number","Method Number","Method Number",null,"EPA602",null,"APFO (ammonium perflourooctanoate)","SW8011"]
[null,null,null,null,"NONPOTABLE WATER VOLATILE ORGANIC CHEMICALS","EPA603",null,"Base/Neutrals & Acids","SW8015B"]
[null,null,null,null,"NONPOTABLE WATER VOLATILE ORGANIC CHEMICALS","EPA624.1",null,"Benzidines","SW8015C"]
[null,null,null,null,"NONPOTABLE WATER VOLATILE ORGANIC CHEMICALS","RSK175",null,"Carbamate Pesticide","SW8015D"]
[null,null,null,null,"NONPOTABLE WATER VOLATILE ORGANIC CHEMICALS","SW8015B","VOC Parameter Names","Carbamates","SW8032A"]
[null,null,null,null,"NONPOTABLE WATER VOLATILE ORGANIC CHEMICALS","SW8015C","Acrolein & Acrylonitrile","Carbonyl Compounds","SW8041"]
[null,null,null,null,"NONPOTABLE WATER VOLATILE ORGANIC CHEMICALS","SW8021B","Acrylonitrile","Chlorinated Herbicides","SW8041B"]
[null,null,null,null,"NONPOTABLE WATER VOLATILE ORGANIC CHEMICALS","SW8031","Carbon Tetrachloride","Chlorinated Hydrocarbons","SW8061A"]
[null,null,null,null,"NONPOTABLE WATER VOLATILE ORGANIC CHEMICALS","SW8260B","Chloroform","Chlorinated Phenolics","SW8070A"]
[null,null,null,null,"NONPOTABLE WATER VOLATILE ORGANIC CHEMICALS","SW8260C","Dissolved Gases","Continuous Liquid-Liquid","SW8081A"]
[null,null,null,null,"NONPOTABLE WATER VOLATILE ORGANIC CHEMICALS",null,"Halogenated & Aromatic Volatiles","EDB & DBCP","SW8081B"]
[null,null,null,null,null,null,"Methylene Chloride","Formaldehyde","SW8082"]
[null,null,null,null,null,null,"Nonhalogenated Volatile Organics","Glycols","SW8082A"]
["PARAMETERS FOR WHICH YOU WISH CERTIFICATION",null,null,null,null,null,"Purgeable Aromatics","Haloethers","SW8091"]
["A method number may be entered manually or selected from the drop-down menu that appears in the cell next to the parameter/ method.  When manually entering the method number, cite the method using common abbreviations.  For example, Base/Neutrals and Acids Gas Chromatography(GC)/Mass Spectrometry(MS), would be listed as “EPA625”, or Standard Methods for Examination of Water and Wastewater, 2000, would be cited as “SM6410 B-00” or SW-846 8270C would be cited as “SW8270C”.  If you wish to be certified for a parameter/ method not listed, use the blank lines at the end of this section to enter the parameter/ method number manually or select from the drop-down menu.",null,null,null,null,null,"Purgeable Halocarbons","Nitroaromatics & Isophorone","SW8100"]
["NONPOTABLE WATER EXTRACTABLE AND SEMI-VOLATILE ORGANIC CHEMICALS",null,null,null,null,null,"Purgeables","Nitroaromatics & Nitramines","SW8111"]
["Parameter","Method Number","Method Number","Method Number",null,null,"Total Petroleum Hydrocarbons (GRO)","Nitroaromatics and Cyclic Ketones","SW8120A"]
[null,null,null,null,"NONPOTABLE WATER EXTRACTABLE AND SEMI-VOLATILE ORGANIC CHEMICALS",null,"Volatile Organic Compounds","Nitrocellulose","SW8121"]
[null,null,null,null,"NONPOTABLE WATER EXTRACTABLE AND SEMI-VOLATILE ORGANIC CHEMICALS",null,"Volatiles","Nitroglycerin","SW8141A"]
[null,null,null,null,"NONPOTABLE WATER EXTRACTABLE AND SEMI-VOLATILE ORGANIC CHEMICALS",null,null,"Nitrosamines","SW8141B"]
[null,null,null,null,"NONPOTABLE WATER EXTRACTABLE AND SEMI-VOLATILE ORGANIC CHEMICALS",null,null,"N-Methylcarbamates","SW8151A"]
[null,null,null,null,"NONPOTABLE WATER EXTRACTABLE AND SEMI-VOLATILE ORGANIC CHEMICALS",null,null,"Nonhalogenated Semi-Volatile Organics","SW8270C"]
[null,null,null,null,"NONPOTABLE WATER EXTRACTABLE AND SEMI-VOLATILE ORGANIC CHEMICALS",null,null,"Organochlorine Pesticides","SW8270D"]
[null,null,null,null,"NONPOTABLE WATER EXTRACTABLE AND SEMI-VOLATILE ORGANIC CHEMICALS",null,null,"Organochlorine Pesticides & PCBs","SW8310"]
[null,null,null,null,"NONPOTABLE WATER EXTRACTABLE AND SEMI-VOLATILE ORGANIC CHEMICALS",null,null,"Organohalide Pesticides","SW8315A"]
[null,null,null,null,"NONPOTABLE WATER EXTRACTABLE AND SEMI-VOLATILE ORGANIC CHEMICALS",null,null,"Organophosphorus Compounds","SW8318A"]
[null,null,null,null,"NONPOTABLE WATER EXTRACTABLE AND SEMI-VOLATILE ORGANIC CHEMICALS",null,null,"Organophosphorus Pesticides","SW8321A"]
[null,null,null,null,"NONPOTABLE WATER EXTRACTABLE AND SEMI-VOLATILE ORGANIC CHEMICALS",null,null,"PCBs Cogeners","SW8321B"]
[null,null,null,null,"NONPOTABLE WATER EXTRACTABLE AND SEMI-VOLATILE ORGANIC CHEMICALS",null,null,"Perfluorooctanoate","SW8330"]
[null,null,null,null,"NONPOTABLE WATER EXTRACTABLE AND SEMI-VOLATILE ORGANIC CHEMICALS",null,null,"Petroleum Hydrocarbons, Total","SW8330A"]
[null,null,null,null,"NONPOTABLE WATER EXTRACTABLE AND SEMI-VOLATILE ORGANIC CHEMICALS",null,null,"Phenols","SW8330B"]
[null,null,null,null,"NONPOTABLE WATER EXTRACTABLE AND SEMI-VOLATILE ORGANIC CHEMICALS",null,null,"Phthalate Esters","SW8332"]
[null,null,null,null,"NONPOTABLE WATER EXTRACTABLE AND SEMI-VOLATILE ORGANIC CHEMICALS",null,null,"Polychlorinated Biphenyls","USATHAMA"]
[null,null,null,null,"NONPOTABLE WATER EXTRACTABLE AND SEMI-VOLATILE ORGANIC CHEMICALS",null,null,"Polynuclear Aromatic Hydrocarbons","V0002522"]
[null,null,null,null,"NONPOTABLE WATER EXTRACTABLE AND SEMI-VOLATILE ORGANIC CHEMICALS",null,null,"Semivolatile Organic Compounds"]
[null,null,null,null,"NONPOTABLE WATER EXTRACTABLE AND SEMI-VOLATILE ORGANIC CHEMICALS",null,null,"Solvent Extractable Nonvolatile Compounds"]
[null,null,null,null,null,null,null,"Total Petroleum Hydrocarbons (DRO)"]
[null,null,null,null,null,null,null,"Triton X-100 (octylphenoxypolyethoxyethanol)"]
[null,null,null,null,null,null,null,"VOC-PMI"]
[]
["PARAMETERS FOR WHICH YOU WISH CERTIFICATION"]
["A method number may be entered manually or selected from the drop-down menu that appears in the cell next to the parameter/ method.  When manually entering the method number, cite the method using common abbreviations.  For example, Dioxin, Gas Chromatography(GC)/Mass Spectrometry(MS), SW-846 8280B would be cited as SW8280 B.  If you wish to be certified for a parameter/ method not listed, use the blank lines at the end of this section to enter the parameter/ method number manually or select from the drop-down menu."]
["NONPOTABLE WATER DIOXIN AND DIBENZOFURAN"]
["Parameter","Method Number","Method Number","Method Number"]
[null,null,null,null,"NONPOTABLE WATER DIOXIN AND DIBENZOFURAN"]
[null,null,null,null,"NONPOTABLE WATER DIOXIN AND DIBENZOFURAN"]
[null,null,null,null,"NONPOTABLE WATER DIOXIN AND DIBENZOFURAN"]
[null,null,null,null,"NONPOTABLE WATER DIOXIN AND DIBENZOFURAN"]
[null,null,null,null,"NONPOTABLE WATER DIOXIN AND DIBENZOFURAN"]
[null,null,null,null,"NONPOTABLE WATER DIOXIN AND DIBENZOFURAN","Parameter","Method Number"]
[null,null,null,null,"NONPOTABLE WATER DIOXIN AND DIBENZOFURAN","2,3,7,8-Tetrachlorodibenzo-p-dioxin","EPA1613B"]
[null,null,null,null,"NONPOTABLE WATER DIOXIN AND DIBENZOFURAN","Dioxins & Furans (PCDD/F)","SW8280A"]
[null,null,null,null,"NONPOTABLE WATER DIOXIN AND DIBENZOFURAN","Dioxins & Furans (PCDD/F)","SW8280B"]
[null,null,null,null,null,"Dioxins & Furans (PCDD/F)","SW8290"]
[null,null,null,null,null,"Dioxins & Furans (PCDD/F)","SW8290A"]
["PARAMETERS FOR WHICH YOU WISH CERTIFICATION",null,null,null,null,"Dioxins & Furans (PCDD/F)"]
["A method number may be entered manually or selected from the drop-down menu that appears in the cell next to the parameter/ method.  When manually entering the method number, cite the method using common abbreviations.  For example, Alpha Counting Error , Method 7110B, Standard Methods for Examination of Water and Wastewater, 1991, would be cited as “SM7110 B-91”.  If you wish to be certified for a parameter/ method not listed, use the blank lines at the end of this section to enter the parameter/ method number manually or select from the drop-down menu.",null,null,null,null,"PCB Congeners"]
["NONPOTABLE WATER RADIOCHEMISTRY"]
["Parameter","Method Number","Method Number","Method Number"]
["Gross Alpha",null,null,null,"NONPOTABLE WATER RADIOCHEMISTRY"]
["Alpha Counting Error",null,null,null,"NONPOTABLE WATER RADIOCHEMISTRY"]
["Gross Beta",null,null,null,"NONPOTABLE WATER RADIOCHEMISTRY"]
["Beta Counting Error",null,null,null,"NONPOTABLE WATER RADIOCHEMISTRY"]
["Cesium 134",null,null,null,"NONPOTABLE WATER RADIOCHEMISTRY"]
["Cesium 137",null,null,null,"NONPOTABLE WATER RADIOCHEMISTRY"]
["Cobalt 60",null,null,null,"NONPOTABLE WATER RADIOCHEMISTRY"]
["Iodine 131",null,null,null,"NONPOTABLE WATER RADIOCHEMISTRY","Radiochemistry",null,null,null,null,null,null,null,null,null,null,null,null,null,null,null,null,null,"NONPOTABLE WATER RADIOCHEMISTRY"]
["Radium 223",null,null,null,"NONPOTABLE WATER RADIOCHEMISTRY","EPA900.0",null,null,null,null,null,null,null,null,null,null,null,null,null,null,null,null,null,"Gross Alpha"]
["Radium 224",null,null,null,"NONPOTABLE WATER RADIOCHEMISTRY","SM7500-Ra C-88",null,null,null,null,null,null,null,null,null,null,null,null,null,null,null,null,null,"Alpha Counting Error"]
["Radium 226",null,null,null,"NONPOTABLE WATER RADIOCHEMISTRY","SM7500-Ra D-88",null,null,null,null,null,null,null,null,null,null,null,null,null,null,null,null,null,"Gross Beta"]
["Radium 228",null,null,null,"NONPOTABLE WATER RADIOCHEMISTRY","SM7500-Ra C-93",null,null,null,null,null,null,null,null,null,null,null,null,null,null,null,null,null,"Beta Counting Error"]
["Strontium 90",null,null,null,"NONPOTABLE WATER RADIOCHEMISTRY","SM7500-Ra D-93",null,null,null,null,null,null,null,null,null,null,null,null,null,null,null,null,null,"Cesium 134"]
["Tritium",null,null,null,"NONPOTABLE WATER RADIOCHEMISTRY","SM7500-Ra C-01",null,null,null,null,null,null,null,null,null,null,null,null,null,null,null,null,null,"Cesium 137"]
["Uranium",null,null,null,"NONPOTABLE WATER RADIOCHEMISTRY","SM7500-Ra D-01",null,null,null,null,null,null,null,null,null,null,null,null,null,null,null,null,null,"Cobalt 60"]
[null,null,null,null,"NONPOTABLE WATER RADIOCHEMISTRY","SM7500-Ra C-11",null,null,null,null,null,null,null,null,null,null,null,null,null,null,null,null,null,"Iodine 131"]
[null,null,null,null,"NONPOTABLE WATER RADIOCHEMISTRY","SM7500-Ra D-11",null,null,null,null,null,null,null,null,null,null,null,null,null,null,null,null,null,"Radium 223"]
[null,null,null,null,null,null,null,null,null,null,null,null,null,null,null,null,null,null,null,null,null,null,null,"Radium 224"]
[null,null,null,null,null,null,null,null,null,null,null,null,null,null,null,null,null,null,null,null,null,null,null,"Radium 226"]
[null,null,null,null,null,null,null,null,null,null,null,null,null,null,null,null,null,null,null,null,null,null,null,"Radium 228"]
["PARAMETERS FOR WHICH YOU WISH CERTIFICATION",null,null,null,null,null,null,null,null,null,null,null,null,null,null,null,null,null,null,null,null,null,null,"Strontium 90"]
["A method number may be entered manually or selected from the drop-down menu that appears in the cell next to the parameter/ method.  When manually entering the method number, cite the method using common abbreviations.  For example, Fathead Minnow-Acute, could be listed as EPA821-R-02-012 2000.0.",null,null,null,null,null,null,null,null,null,null,null,null,null,null,null,null,null,null,null,null,null,null,"Tritium"]
["WHOLE EFFLUENT TOXICITY",null,null,null,null,null,null,null,null,null,null,null,null,null,null,null,null,null,null,null,null,null,null,"Uranium"]
["Parameter","Method Number","Method Number","Method Number"]
["Acute- Brook Trout",null,null,null,"WHOLE EFFLUENT TOXICITY"]
["Acute- Ceriodaphnia dubia",null,null,null,"WHOLE EFFLUENT TOXICITY"]
["Acute- Daphnia Magna",null,null,null,"WHOLE EFFLUENT TOXICITY","Whole Effluent Toxicity"]
["Acute- Daphnia pulex",null,null,null,"WHOLE EFFLUENT TOXICITY","EPA600-4-91-002 1000.0"]
["Acute- Fathead Minnow",null,null,null,"WHOLE EFFLUENT TOXICITY","EPA600-4-91-002 1002.0"]
["Acute- Rainbow Trout",null,null,null,"WHOLE EFFLUENT TOXICITY","EPA821-R-02-012 2000.0",null,null,null,null,null,null,null,null,null,null,null,null,null,null,null,null,null,"WHOLE EFFLUENT TOXICITY"]
["Chonic- Green Alga",null,null,null,"WHOLE EFFLUENT TOXICITY","EPA821-R-02-012 2002.0",null,null,null,null,null,null,null,null,null,null,null,null,null,null,null,null,null,"Acute- Brook Trout"]
["Chronic- Ceriodaphnia dubia",null,null,null,"WHOLE EFFLUENT TOXICITY","EPA821-R-02-012 2019.0",null,null,null,null,null,null,null,null,null,null,null,null,null,null,null,null,null,"Acute- Ceriodaphnia dubia"]
["Chronic- Fathead Minnow",null,null,null,"WHOLE EFFLUENT TOXICITY","EPA821-R-02-012 2021.0",null,null,null,null,null,null,null,null,null,null,null,null,null,null,null,null,null,"Acute- Daphnia Magna"]
["Chronic- Invertebrate",null,null,null,"WHOLE EFFLUENT TOXICITY","EPA821-R-02-013 1000.0",null,null,null,null,null,null,null,null,null,null,null,null,null,null,null,null,null,"Acute- Daphnia pulex"]
[null,null,null,null,"WHOLE EFFLUENT TOXICITY","EPA821-R-02-013 1002.0",null,null,null,null,null,null,null,null,null,null,null,null,null,null,null,null,null,"Acute- Fathead Minnow"]
[null,null,null,null,null,"EPA821-R-02-013 1003.0",null,null,null,null,null,null,null,null,null,null,null,null,null,null,null,null,null,"Acute- Rainbow Trout"]
[null,null,null,null,null,null,null,null,null,null,null,null,null,null,null,null,null,null,null,null,null,null,null,"Chonic- Green Alga"]
[null,null,null,null,null,null,null,null,null,null,null,null,null,null,null,null,null,null,null,null,null,null,null,"Chronic- Ceriodaphnia dubia"]
["PARAMETERS FOR WHICH YOU WISH CERTIFICATION",null,null,null,null,"Haz. Waste",null,null,null,null,null,null,null,null,null,null,null,null,null,null,null,null,null,"Chronic- Fathead Minnow"]
["When citing methods, use common abbreviation and method numbers.  For example, Corrosivity could be listed as SW9040C.  If you wish to be certified for a parameter that is not listed, please list the parameter with the appropriate method on the blank lines provided at the end of this section.",null,null,null,null,"SW1110",null,null,"Corrosivity",null,null,null,null,null,null,null,null,null,null,null,null,null,null,"Chronic- Invertebrate"]
["HAZARDOUS WASTE CHARACTERISTICS",null,null,null,null,"ASTM D93-02(a)",null,null,"HACH 8307"]
["Parameter","Method Number","Method Number","Method Number",null,"SW Chapter 7.3.4.2",null,null,"SW1110"]
["Corrosivity",null,null,null,"HAZARDOUS WASTE CHARACTERISTICS","SW1010",null,null,"SW1110A"]
["Ignitability",null,null,null,"HAZARDOUS WASTE CHARACTERISTICS","SW1020A",null,null,"SW9045C"]
["Paint Filter Test",null,null,null,"HAZARDOUS WASTE CHARACTERISTICS","SW1110A",null,null,"SW9045D"]
["EP Tox-Metals",null,null,null,"HAZARDOUS WASTE CHARACTERISTICS","SW1311",null,null,"SW9040C"]
["EP Tox- Metals & Organics",null,null,null,"HAZARDOUS WASTE CHARACTERISTICS","SW1311 Mod"]
["TCLP- Metals",null,null,null,"HAZARDOUS WASTE CHARACTERISTICS","SW1311A",null,null,"Extraction ProcedureToxicity-Metals/ Metals & Organics","Ignitability"]
["TCLP- Metals & Organics",null,null,null,"HAZARDOUS WASTE CHARACTERISTICS","SW1312",null,null,"SW1310A","SW1010"]
[null,null,null,null,"HAZARDOUS WASTE CHARACTERISTICS","SW3810",null,null,null,"SW1010A",null,null,null,null,null,null,null,null,null,null,null,null,null,"HAZARDOUS WASTE CHARACTERISTICS"]
[null,null,null,null,"HAZARDOUS WASTE CHARACTERISTICS","SW9014",null,null,null,"SW1020A",null,null,null,null,null,null,null,null,null,null,null,null,null,"Corrosivity"]
[null,null,null,null,"HAZARDOUS WASTE CHARACTERISTICS","SW9040C",null,null,null,"SW1020B",null,null,null,null,null,null,null,null,null,null,null,null,null,"Ignitability"]
[null,null,null,null,"HAZARDOUS WASTE CHARACTERISTICS","SW9045D",null,null,null,"SW1030",null,null,null,null,null,null,null,null,null,null,null,null,null,"Paint Filter Test"]
[null,null,null,null,null,"SW9095B",null,null,null,null,null,null,null,null,null,null,null,null,null,null,null,null,null,"EP Tox- Metals"]
[null,null,null,null,null,null,null,null,null,null,null,null,null,null,null,null,null,null,null,null,null,null,null,"EP Tox- Metals & Organics"]
[null,null,null,null,null,null,null,null,null,null,null,null,null,null,null,null,null,null,null,null,null,null,null,"TCLP- Metals"]
["PARAMETERS FOR WHICH YOU WISH CERTIFICATION",null,null,null,null,null,null,null,null,null,null,null,null,null,null,null,null,null,null,null,null,null,null,"TCLP- Metals & Organics"]
["A method number may be entered manually or selected from the drop-down menu that appears in the cell next to the parameter/ method.  When manually entering the method number, cite the method using common abbreviations.  For example, Ammonia by Titration, Method 4500NH3, Standard Methods for Examination of Water & Wastewater, 1997, would be cited as \"SM4500-NH3 C-97.\"  If you wish to be certified for a parameter/ method not listed, use the blank lines at the end of this section to enter the parameter/ method number manually or select from the drop-down menu.",null,null,null,null,null,null,null,null,null,null,null,null,null,null,null,null,null,null,null,null,null,null,"Flashpoint"]
["Parameters marked ## may be determined by calculation.  The lab must be certified for all parameters used to perform the calculations if determined by calculation.",null,null,null,null,null,null,null,null,null,null,"Kjeldahl, Total Nitrogen",null,null,null,null,null,null,null,null,null,null,null,"Headspace (Static)"]
["SOLID AND CHEMICAL INORGANIC NONMETALS",null,null,null,null,null,null,null,null,"Cyanide, Total",null,"ASTM 3590-89",null,null,null,null,null,null,null,null,null,null,null,"Modified TCLP using DI water"]
["Parameter","Method Number","Method Number","Method Number",null,null,null,null,null,"EPA335.4 Rev 1.0-1993",null,"EPA351.2 Rev 2.0-1993",null,null,null,null,null,null,null,null,null,null,null,"SPLP- Metals"]
["pH (Hydrogen Ion)",null,null,null,"SOLID AND CHEMICAL INORGANIC NONMETALS",null,null,null,null,"SM4500-CN D-11",null,"SM4500-NH3 C-11",null,null,null,null,null,null,null,null,null,null,null,"SPLP- Metals & Organics"]
["Ammonia",null,null,null,"SOLID AND CHEMICAL INORGANIC NONMETALS",null,null,null,null,"SM4500-CN E-11",null,"SM4500-NH3 C-97"]
["Bromide",null,null,null,"SOLID AND CHEMICAL INORGANIC NONMETALS",null,"Ammonia","Bromide",null,"SM4500-CN F-11",null,"SM4500-NH3 D-11"]
["Chloride",null,null,null,"SOLID AND CHEMICAL INORGANIC NONMETALS",null,"ASTM D6919-09","ASTM D1246-10",null,"SW9012B",null,"SM4500-NH3 D-11",null,null,null,null,null,null,null,null,null,null,null,"SOLID AND CHEMICAL INORGANIC NONMETALS"]
["Chromium, Hexavalent",null,null,null,"SOLID AND CHEMICAL INORGANIC NONMETALS","pH","EPA350.1 Rev 2.0-1993","EPA300.0 Rev 2.1-1993","Chloride","SW9014","Fluoride","SM4500-NH3 D-97","Nitrate","Nitrate-Nitrite","Nitrite",null,null,null,null,null,null,null,null,"% Moisture"]
["Cyanide, Total",null,null,null,"SOLID AND CHEMICAL INORGANIC NONMETALS","SW9040C","SM4500-NH3 C-11","SW9056","AOAC 971.27","SW9213","EPA300.0 Rev 2.1-1993","SM4500-NH3 E-11","EPA300.0 Rev 2.1-1993","EPA300.0 Rev 2.1-1993","EPA300.0 Rev 2.1-1993",null,null,null,null,null,null,null,null,"Ammonia"]
["Oxygen Demand, Chemical (COD)",null,null,null,"SOLID AND CHEMICAL INORGANIC NONMETALS","SW9045D","SM4500-NH3 D-11","SW9056A","ASTM D512-04 (A)","SW9214","SW9056","SM4500-NH3 E-97","EPA353.2 Rev 2.0-1993","EPA353.2 Rev 2.0-1993","EPA353.2 Rev 2.0-1993",null,null,null,null,null,null,null,null,"Ash"]
["Fluoride",null,null,null,"SOLID AND CHEMICAL INORGANIC NONMETALS",null,"SM4500-NH3 D-11","SW9211","ASTM D512-04 (C)",null,"SW9056A","SM4500-NH3 F-11","SM4500-NO3 F-11","SM4500-NO3 F-11","SM4500-NO3 F-11",null,null,null,null,null,null,null,null,"Bromide","S&CIN MASTER LIST"]
["Nitrogen, Total Kjeldahl (TKN)",null,null,null,"SOLID AND CHEMICAL INORGANIC NONMETALS",null,"SM4500-NH3 E-11",null,"EPA300.0 Rev 2.1-1993",null,"SW9214","SM4500-NH3 F-97","SW9056","SW9056","SW9056",null,null,null,null,null,null,null,null,"BTU","AOAC 971.27"]
["Nitrate ##",null,null,null,"SOLID AND CHEMICAL INORGANIC NONMETALS",null,"SM4500-NH3 F-11",null,"SW6500",null,null,"SM4500-NH3 G-11","SW9056A","SW9056A","SW9056A",null,null,null,null,null,null,null,null,"BTU, Heating Value","ASTM 3590-11 (B)"]
["Nitrate-Nitrite  ##",null,null,null,"SOLID AND CHEMICAL INORGANIC NONMETALS",null,"SM4500-NH3 G-11",null,"SW9056",null,null,"SM4500-NH3 G-97","SW9210",null,null,null,null,null,null,null,null,null,null,"Chloride","ASTM D1246"]
["Nitrite ##",null,null,null,"SOLID AND CHEMICAL INORGANIC NONMETALS",null,"SM4500-NH3 H-11",null,"SW9056A",null,null,"SM4500-NH3 H-11","SW9210A",null,null,null,null,null,null,null,null,null,null,"Chromium, Hexavalent","ASTM D2216-90"]
["Oil & Grease",null,null,null,"SOLID AND CHEMICAL INORGANIC NONMETALS",null,null,null,"SW9212",null,null,"SM4500-NH3 H-97",null,null,null,null,null,null,null,null,null,null,null,"Cyanide, Available","ASTM D2382-76"]
["Carbon, Total Organic (TOC)",null,null,null,"SOLID AND CHEMICAL INORGANIC NONMETALS",null,null,null,"SW9250",null,null,null,null,null,null,null,null,null,null,null,null,null,null,"Cyanide, Reactive","ASTM D3286-85"]
["Phenolics, Total",null,null,null,"SOLID AND CHEMICAL INORGANIC NONMETALS",null,null,null,"SW9251",null,null,null,null,null,null,null,null,null,null,null,null,null,null,"Cyanide, Total","ASTM D482-91"]
["Phosphorous, Ortho",null,null,null,"SOLID AND CHEMICAL INORGANIC NONMETALS",null,null,null,"SW9251A",null,null,null,null,null,null,null,null,null,null,null,null,null,null,"Demand, Chemical (COD)","ASTM D512-04 (A)"]
["Phosphorous, Total ",null,null,null,"SOLID AND CHEMICAL INORGANIC NONMETALS",null,null,null,null,null,null,null,null,null,null,null,null,null,null,null,null,null,null,"Fluoride","ASTM D512-04 (C)"]
["Silica ",null,null,null,"SOLID AND CHEMICAL INORGANIC NONMETALS",null,null,null,null,null,null,null,null,null,null,null,null,null,null,null,null,null,null,"Halides, Extractable Organic (EOX)","ASTM D6919-09"]
["Solids, Total, Fixed, & Volatile",null,null,null,"SOLID AND CHEMICAL INORGANIC NONMETALS",null,null,null,null,null,null,null,null,null,null,null,null,null,null,null,null,null,null,"Halides, Total","EPA160.4"]
["Sulfate",null,null,null,"SOLID AND CHEMICAL INORGANIC NONMETALS","Oil & Grease",null,null,"Phosphorus, Total","Silica, Dissolved","Solids, Total & Volatile","Sulfate","Hexavalent Chromium","TOC","COD",null,null,null,null,null,null,null,null,"Halides, Total Organic","EPA200.7 Rev 4.4-1994"]
[null,null,null,null,"SOLID AND CHEMICAL INORGANIC NONMETALS","SW9071A",null,null,"EPA365.1 Rev 2.0-1993","EPA200.5 Rev 4.2-2003","SM2540 G-11","EPA300.0 Rev 2.1-1993","SM3500-Cr B-11","Lloyd Kahn","EPA410.4 Rev 2.0-1993",null,null,null,null,null,null,null,null,"Kjeldahl, Total Nitrogen","EPA200.8 Rev 5.4-1994"]
[null,null,null,null,"SOLID AND CHEMICAL INORGANIC NONMETALS","SW9071B",null,"Phosphate, Ortho","EPA365.4 (1974)","EPA200.7 Rev 4.4-1994",null,"SW9038","SM3500-Cr C-11","Walkley-Black","HACH 8000",null,null,null,null,null,null,null,null,"Nitrate","EPA300.0 Rev 2.1-1993"]
[null,null,null,null,"SOLID AND CHEMICAL INORGANIC NONMETALS",null,null,"EPA300.0 Rev 2.1-1993","HACH 8048","EPA200.8 Rev 5.4-1994",null,"SW9038A","SW7196","SW9060A",null,null,null,null,null,null,null,null,null,"Nitrate-Nitrite ","EPA335.4 Rev 1.0-1993"]
[null,null,null,null,"SOLID AND CHEMICAL INORGANIC NONMETALS",null,null,"EPA365.1 Rev 2.0-1993","SM4500-P E-11","SM3111 D-11",null,"SW9056",null,null,null,null,null,null,null,null,null,null,null,"Nitrite","EPA350.1 Rev 2.0-1993"]
[null,null,null,null,"SOLID AND CHEMICAL INORGANIC NONMETALS",null,null,"SM4500-P E-11","SM4500-P F-11","SM3120 B-11",null,"SW9056A",null,null,null,null,null,null,null,null,null,null,null,"Oil & Grease","EPA351.2 Rev 2.0-1993"]
[null,null,null,null,"SOLID AND CHEMICAL INORGANIC NONMETALS",null,null,"SM4500-P F-11","SW9056","SW6010B",null,null,null,null,null,null,null,null,null,null,null,null,null,"Organic Carbon, Total","EPA353.2 Rev 2.0-1993"]
[null,null,null,null,"SOLID AND CHEMICAL INORGANIC NONMETALS",null,null,"SW9056","SW9056A","SW6010C",null,null,null,null,null,null,null,null,null,null,null,null,null,"Percent Solids","EPA365.1 Rev 2.0-1993"]
[null,null,null,null,"SOLID AND CHEMICAL INORGANIC NONMETALS",null,null,"SW9056A",null,"SW6020",null,null,null,null,null,null,null,null,null,null,null,null,null,"Percent Water (Wastewater Sludge)","EPA365.4 Rev 1974"]
[null,null,null,null,"SOLID AND CHEMICAL INORGANIC NONMETALS",null,null,null,null,"SW6020A",null,null,null,null,null,null,null,null,null,null,null,null,null,"Perchlorate","EPA410.4 Rev 2.0-1993"]
[null,null,null,null,"SOLID AND CHEMICAL INORGANIC NONMETALS",null,null,null,null,null,null,null,null,null,null,null,null,null,null,null,null,null,null,"pH (Hydrogen Ion)","HACH 8000"]
[null,null,null,null,"SOLID AND CHEMICAL INORGANIC NONMETALS",null,null,null,null,null,null,null,null,null,null,null,null,null,null,null,null,null,null,"Phenolics, Total","HACH 8048"]
[null,null,null,null,"SOLID AND CHEMICAL INORGANIC NONMETALS",null,"Phenolics, Total",null,null,null,null,null,null,null,null,null,null,null,null,null,null,null,null,"Phosphate, Ortho (as P)","Lloyd Kahn"]
[null,null,null,null,"SOLID AND CHEMICAL INORGANIC NONMETALS",null,"SW9065",null,null,null,null,null,null,null,null,null,null,null,null,null,null,null,null,"Phosphate, Total (as P)","Mettler HG53 Dryer"]
[null,null,null,null,"SOLID AND CHEMICAL INORGANIC NONMETALS",null,"SW9066",null,null,null,null,null,null,null,null,null,null,null,null,null,null,null,null,"Silica, Dissolved","Mettler LP16 Dryer"]
[null,null,null,null,null,null,null,null,null,null,null,null,null,null,null,null,null,null,null,null,null,null,null,"Solids, Total","OIA-1677"]
[null,null,null,null,"SOLID AND CHEMICAL INORGANIC NONMETALS",null,null,null,null,null,null,null,null,null,null,null,null,null,null,null,null,null,null,"Solids, Volatile","SM2540 G-11"]
[null,null,null,null,null,null,null,null,null,null,null,null,null,null,null,null,null,null,null,null,null,null,null,"Sulfate","SM2540 G-97"]
["PARAMETERS FOR WHICH YOU WISH CERTIFICATION",null,null,null,null,null,null,null,null,null,null,null,null,null,null,null,null,null,null,null,null,null,null,"Sulfide","SM3111 D-11"]
["A method number may be entered manually or selected from the drop-down menu that appears in the cell next to the parameter/ method.  When manually entering the method number, cite the method using common abbreviations.  For example, Aluminum, Flame AA, SW-846-7000B, would be cited as SW7000B.  If you wish to be certified for a parameter/ method not listed, use the blank lines at the end of this section to enter the parameter/ method number manually or select from the drop-down menu.",null,null,null,null,null,null,null,null,null,null,null,null,null,null,null,null,null,null,null,null,null,null,"Sulfide, Soluble","SM3111 D-99"]
["Metals marked with ** are required, if you are seeking certification for EP and/or TCLP Toxicity",null,null,null,null,null,null,null,null,null,null,null,null,null,null,null,null,null,null,null,null,null,null,null,"SM3120 B-11"]
["SOLID AND CHEMICAL TRACE METALS",null,null,null,null,null,null,null,null,null,null,null,null,null,null,null,null,null,null,null,null,null,null,null,"SM3120 B-99"]
["Parameter","Method Number","Method Number","Method Number","SOLID AND CHEMICAL TRACE METALS",null,null,null,null,null,null,null,null,null,null,null,null,null,null,null,null,null,null,null,"SM4500-CN D-11"]
["Aluminum",null,null,null,"SOLID AND CHEMICAL TRACE METALS",null,null,null,null,null,null,null,null,null,null,null,null,null,null,null,null,null,null,null,"SM4500-CN D-99"]
["Antimony",null,null,null,"SOLID AND CHEMICAL TRACE METALS",null,null,null,null,null,null,null,null,null,null,null,null,null,null,null,null,null,null,null,"SM4500-CN E-11"]
["Arsenic**",null,null,null,"SOLID AND CHEMICAL TRACE METALS",null,null,null,null,null,null,null,null,null,null,null,null,null,null,null,null,null,null,null,"SM4500-CN E-99"]
["Barium**",null,null,null,"SOLID AND CHEMICAL TRACE METALS",null,null,null,null,null,null,null,null,null,null,null,null,null,null,null,null,null,null,null,"SM4500-CN F-11"]
["Beryllium",null,null,null,"SOLID AND CHEMICAL TRACE METALS",null,null,null,null,null,null,null,null,null,null,null,null,null,null,null,null,null,null,"SOLID AND CHEMICAL TRACE METALS","SM4500-CN F-99"]
["Boron",null,null,null,"SOLID AND CHEMICAL TRACE METALS",null,null,null,null,null,null,null,null,null,null,null,null,null,null,null,null,null,null,"Aluminum","SM4500-NH3 C-11"]
["Cadmium**",null,null,null,"SOLID AND CHEMICAL TRACE METALS",null,null,null,null,null,null,null,null,null,null,null,null,null,null,null,null,null,null,"Antimony","SM4500-NH3 C-97"]
["Calcium",null,null,null,"SOLID AND CHEMICAL TRACE METALS",null,null,null,null,null,null,null,null,null,null,null,null,null,null,null,null,null,null,"Arsenic","SM4500-NH3 D-11"]
["Chromium",null,null,null,"SOLID AND CHEMICAL TRACE METALS","Aluminum","Antimony","Arsenic","Barium","Beryllium","Boron","Cadmium","Calcium","Chromium","Cobalt","Copper","Gold","Iron","Lead","Magnesium","Manganese","All metals",null,"Barium","SM4500-NH3 D-97"]
["Cobalt",null,null,null,"SOLID AND CHEMICAL TRACE METALS","EPA200.7 Rev 4.4-1994","EPA200.7 Rev 4.4-1994","EPA200.7 Rev 4.4-1994","EPA200.7 Rev 4.4-1994","EPA200.7 Rev 4.4-1994","EPA200.7 Rev 4.4-1994","EPA200.7 Rev 4.4-1994","EPA200.7 Rev 4.4-1994","EPA200.7 Rev 4.4-1994","EPA200.7 Rev 4.4-1994","EPA200.7 Rev 4.4-1994","EPA200.7 Rev 4.4-1994","EPA200.7 Rev 4.4-1994","EPA200.7 Rev 4.4-1994","EPA200.7 Rev 4.4-1994","EPA200.7 Rev 4.4-1994","EPA200.7 Rev 4.4-1994",null,"Beryllium","SM4500-NH3 E-11"]
["Copper",null,null,null,"SOLID AND CHEMICAL TRACE METALS","EPA200.8 Rev 5.4-1994","EPA200.8 Rev 5.4-1994","EPA200.8 Rev 5.4-1994","EPA200.8 Rev 5.4-1994","EPA200.8 Rev 5.4-1994","SM3120 B-11","EPA200.8 Rev 5.4-1994","EPA200.8 Rev 5.4-1994","EPA200.8 Rev 5.4-1994","EPA200.8 Rev 5.4-1994","EPA200.8 Rev 5.4-1994","EPA200.8 Rev 5.4-1994","EPA200.8 Rev 5.4-1994","EPA200.8 Rev 5.4-1994","EPA200.8 Rev 5.4-1994","EPA200.8 Rev 5.4-1994","EPA200.8 Rev 5.4-1994",null,"Boron","SM4500-NH3 E-97"]
["Gold",null,null,null,"SOLID AND CHEMICAL TRACE METALS","EPA200.9 Rev 2.2-1994","EPA200.9 Rev 2.2-1994","EPA200.9 Rev 2.2-1994","SM3111 D-11","EPA200.9 Rev 2.2-1994","SW6010B","EPA200.9 Rev 2.2-1994","SM3111 B-11","EPA200.9 Rev 2.2-1994","EPA200.9 Rev 2.2-1994","EPA200.9 Rev 2.2-1994","EPA231.2 Rev. 1978","EPA200.9 Rev 2.2-1994","EPA200.9 Rev 2.2-1994","SM3111 B-11","EPA200.9 Rev 2.2-1994","EPA200.9 Rev 2.2-1994",null,"Cadmium","SM4500-NH3 G-11"]
["Iron",null,null,null,"SOLID AND CHEMICAL TRACE METALS","SM3111 D-11","SM3111 B-11","SM3113 B-10","SM3113 B-10","SM3111 D-11","SW6010C","SM3111 B-11","SM3113 B-10","SM3111 B-11","SM3111 B-11","SM3111 B-11","SM3111 B-11","SM3111 B-11","SM3111 B-11","SM3120 B-11","SM3111 B-11","EPA245.5",null,"Calcium","SM4500-NH3 G-97"]
["Lead**",null,null,null,"SOLID AND CHEMICAL TRACE METALS","SM3113 B-10","SM3113 B-10","SM3114 B-11(4.d)","SM3120 B-11","SM3113 B-10","SW6010D","SM3113 B-10","SM3120 B-11","SM3113 B-10","SM3113 B-10","SM3113 B-10","SM3120 B-11","SM3111 C-11","SM3113 B-10","SW6010B","SM3113 B-10","EPA279.2 (1978)",null,"Cesium","SM4500-NH3 H-11"]
["Magnesium",null,null,null,"SOLID AND CHEMICAL TRACE METALS","SM3120 B-11","SM3120 B-11","SM3120 B-11","SW6010B","SM3120 B-11","SW6020","SM3120 B-11","SW6010B","SM3120 B-11","SM3120 B-11","SM3120 B-11","SW6010B","SM3113 B-10","SM3120 B-11","SW6010C","SM3120 B-11","EPA283.2 (1978)",null,"Chromium","SM4500-NH3 H-97"]
["Manganese",null,null,null,"SOLID AND CHEMICAL TRACE METALS","SW6010B","SW6010B","SW6010B","SW6010C","SW6010B","SW6020A","SW6010B","SW6010C","SW6010B","SW6010B","SW6010B","SW6010C","SM3120 B-11","SW6010B","SW6010D","SW6010B","EPA289.2 (1978)",null,"Cobalt","SM4500-NO3 F-00"]
["Mercury**",null,null,null,"SOLID AND CHEMICAL TRACE METALS","SW6010C","SW6010C","SW6010C","SW6010D","SW6010C","SW6020B","SW6010C","SW6010D","SW6010C","SW6010C","SW6010C","SW6010D","SW6010B","SW6010C","SW6020","SW6010C","SM3111 B-11",null,"Copper","SM4500-NO3 F-11"]
["Molybdenum",null,null,null,"SOLID AND CHEMICAL TRACE METALS","SW6010D","SW6010D","SW6010D","SW6020","SW6010D",null,"SW6010D","SW6020","SW6010D","SW6010D","SW6010D","SW6020","SW6010C","SW6010D","SW6020A","SW6010D","SM3111 C-11",null,"Gold","SM4500-P E-11"]
["Nickel",null,null,null,"SOLID AND CHEMICAL TRACE METALS","SW6020","SW6020","SW6020","SW6020A","SW6020",null,"SW6020","SW6020A","SW6020","SW6020","SW6020","SW6020A","SW6010D","SW6020","SW6020B","SW6020","SM3111 D-11",null,"Iron","SM4500-P E-99"]
["Palladium",null,null,null,"SOLID AND CHEMICAL TRACE METALS","SW6020A","SW6020A","SW6020A","SW6020B","SW6020A",null,"SW6020A","SW6020B","SW6020A","SW6020A","SW6020A","SW6020B","SW6020","SW6020A","SW7000A","SW6020A","SM3113 B-10",null,"Lead","SM4500-P F-11"]
["Phosphorus",null,null,null,"SOLID AND CHEMICAL TRACE METALS","SW6020B","SW6020B","SW6020B","SW7000A","SW6020B",null,"SW6020B","SW7000A","SW6020B","SW6020B","SW6020B",null,"SW6020A","SW6020B","SW7000B","SW6020B","SM3114 B-11 (4.d)",null,"Lithium","SM4500-P F-99"]
["Platinum",null,null,null,"SOLID AND CHEMICAL TRACE METALS","SW7000A","SW7000A","SW7000A","SW7000B","SW7000A",null,"SW7000A","SW7000B","SW7000A","SW7000B","SW7000A",null,"SW6020B","SW7000A","SW7010","SW7000A","SM3114 B-11 (4.d)",null,"Magnesium","SW6010B"]
["Potassium",null,null,null,"SOLID AND CHEMICAL TRACE METALS","SW7000B","SW7000B","SW7000B","SW7010","SW7000B",null,"SW7000B","SW7010","SW7000B","SW7010","SW7000B",null,"SW7000A","SW7000B",null,"SW7000B","SM3120 B-11",null,"Manganese","SW6010C"]
["Selenium**",null,null,null,"SOLID AND CHEMICAL TRACE METALS","SW7000B","SW7010","SW7010",null,"SW7010",null,"SW7010",null,"SW7010",null,"SW7010",null,"SW7000B","SW7010",null,"SW7010","SW6010B",null,"Mercury","SW6010D"]
["Silicon",null,null,null,"SOLID AND CHEMICAL TRACE METALS","SW7010",null,"SW7060A",null,null,null,"SW7131A",null,null,null,"SW7211",null,"SW7010","SW7421",null,null,"SW6010C",null,"Molybdenum","SW6020"]
["Silver**",null,null,null,"SOLID AND CHEMICAL TRACE METALS",null,null,"SW7061A",null,null,null,null,null,null,null,null,null,null,null,null,null,"SW6010D",null,"Nickel","SW6020A"]
["Sodium",null,null,null,"SOLID AND CHEMICAL TRACE METALS",null,null,null,null,null,null,null,null,null,null,null,null,null,null,null,null,"SW6020",null,"Palladium","SW6020B"]
["Strontium",null,null,null,"SOLID AND CHEMICAL TRACE METALS",null,null,null,null,null,"Potassium",null,"Silicon",null,null,null,"Thallium",null,null,"Vanadium",null,"SW6020A",null,"Phosphorus","SW6500"]
["Sulfate",null,null,null,"SOLID AND CHEMICAL TRACE METALS",null,null,null,null,null,"EPA200.7 Rev 4.4-1994",null,"EPA200.7 Rev 4.4-1994",null,null,null,"EPA200.7 Rev 4.4-1994",null,null,"EPA200.7 Rev 4.4-1994",null,"SW6020B",null,"Platinum","SW6850"]
["Thallium",null,null,null,"SOLID AND CHEMICAL TRACE METALS",null,null,null,null,null,"SM3111 B-11",null,"EPA200.8 Rev 5.4-1994",null,null,null,"EPA200.8 Rev 5.4-1994",null,null,"EPA200.8 Rev 5.4-1994",null,"SW7000A",null,"Potassium","SW7196"]
["Tin",null,null,null,"SOLID AND CHEMICAL TRACE METALS",null,null,null,null,null,"SM3120 B-11",null,"SM3111 D-11",null,null,null,"EPA200.9 Rev 2.2-1994",null,null,"EPA200.9 Rev 2.2-1994",null,"SW7000B",null,"Selenium","SW9012A"]
["Titanium",null,null,null,"SOLID AND CHEMICAL TRACE METALS",null,null,null,null,null,"SW6010B",null,"SM3120 B-11",null,null,null,"EPA279.2 (1978)",null,null,"SM3111 D-11",null,"SW7010B",null,"Silicon","SW9012B"]
["Vanadium",null,null,null,"SOLID AND CHEMICAL TRACE METALS",null,null,null,null,null,"SW6010C","Selenium","SW6010B","Silver","Sodium","Strontium","SM3111 B-11",null,null,"SM3120 B-11",null,"SW7060A",null,"Silver","SW9014"]
["Zinc",null,null,null,"SOLID AND CHEMICAL TRACE METALS",null,null,null,null,null,"SW6010D","EPA200.7 Rev 4.4-1994","SW6010C","EPA200.7 Rev 4.4-1994","EPA200.7 Rev 4.4-1994","EPA200.7 Rev 4.4-1994","SM3113 B-10",null,null,"SW6010B",null,"SW7061A",null,"Sodium","SW9023"]
[null,null,null,null,"SOLID AND CHEMICAL TRACE METALS",null,"Molybdenum",null,"Palladium","Platinum","SW6020","EPA200.8 Rev 5.4-1994","SW6010D","EPA200.8 Rev 5.4-1994","EPA200.8 Rev 5.4-1994","EPA200.8 Rev 5.4-1994","SM3120 B-11","Tin","Titanium","SW6010C",null,"SW7131A",null,"Strontium","SW9031"]
[null,null,null,null,"SOLID AND CHEMICAL TRACE METALS",null,"EPA200.7 Rev 4.4-1994",null,"EPA200.7 Rev 4.4-1994","SW6010C","SW6020A","EPA200.9 Rev 2.2-1994","SW6020","EPA200.9 Rev 2.2-1994","SM3111 B-11","SM3111 B-11","SW6010B","EPA200.7 Rev 4.4-1994","EPA200.7 Rev 4.4-1994","SW6010D","Zinc","SW7211",null,"Sulfate","SW9034"]
[null,null,null,null,"SOLID AND CHEMICAL TRACE METALS",null,"EPA200.8 Rev 5.4-1994",null,"EPA200.8 Rev 5.4-1994","SW6010D","SW6020B","SM3113 B-10","SW6020A","SM3111 B-11","SM3120 B-11","SM3120 B-11","SW6010C","EPA200.8 Rev 5.4-1994","EPA200.8 Rev 5.4-1994","SW6020","EPA200.7 Rev 4.4-1994","SW7421",null,"Thallium","SW9034A"]
[null,null,null,null,null,null,"EPA200.9 Rev 2.2-1994",null,"SW6010C","SW6020","SW7000A","SM3120 B-11","SW6020B","SM3113 B-10","SW6010B","SW6010B","SW6010D","EPA200.9 Rev 2.2-1994","EPA283.2 (1978)","SW6020A","EPA200.8 Rev 5.4-1994","SW7470A",null,"Tin","SW9038"]
[null,null,null,null,null,null,"SM3111 D-11","Nickel","SW6010D","SW6020A","SW7000B","SW6010B",null,"SM3120 B-11","SW6010C","SW6010C","SW6020","SM3113 B-10","SM3120 B-11","SW6020B","EPA289.2 (1978)","SW7471B",null,"Titanium","SW9038A"]
[null,null,null,null,null,null,"SM3113 B-10","EPA200.7 Rev 4.4-1994","SW6020","SW6020B","SW7010","SW6010C",null,"SW6010B","SW6010D","SW6010D","SW6020A","SM3120 B-11","SW6010B","SW7000B","SM3111 B-11",null,null,"Vanadium","SW9040C"]
[null,null,null,null,null,null,"SM3120 B-11","EPA200.8 Rev 5.4-1994","SW6020A",null,null,"SW6010D",null,"SW6010C","SW6020","SW6020","SW6020B","SW6010B","SW6010C","SW7010","SM3120 B-11",null,null,"Zinc","SW9045D"]
[null,null,null,null,null,null,"SW6010B","EPA200.9 Rev 2.2-1994","SW6020B",null,null,"SW6020",null,"SW6010D","SW6020A","SW6020A","SW7000A","SW6010C","SW6010D",null,"SW6010B",null,null,"Zirconium","SW9056"]
[null,null,null,null,null,null,"SW6010C","SM3111 B-11",null,null,null,"SW6020A",null,"SW6020","SW6020B","SW6020B","SW7000B","SW6010D","SW6020",null,"SW6010C",null,null,null,"SW9056A"]
[null,null,null,null,null,null,"SW6010D","SM3113 B-10",null,null,null,"SW6020B",null,"SW6020A","SW7000A",null,"SW7010","SW6020","SW6020A",null,"SW6010D",null,null,null,"SW9060A"]
[null,null,null,null,null,null,"SW6020","SM3120 B-11",null,null,null,"SW7000A",null,"SW6020B","SW7000B",null,"SW7841","SW6020A","SW6020B",null,"SW6020",null,null,null,"SW9065"]
[null,null,null,null,null,"Mercury","SW6020A","SW6010B",null,null,null,"SW7000B",null,"SW7000A","SW7010",null,null,"SW6020B",null,null,"SW6020A",null,null,null,"SW9066"]
["SOLID AND CHEMICAL TRACE METALS",null,null,null,null,"EPA200.8 Rev 5.4-1994","SW6020B","SW6010C",null,null,null,"SW7010",null,"SW7000B",null,null,null,null,null,null,"SW6020B",null,null,null,"SW9071A"]
["(Additional parameters)",null,null,null,null,"EPA245.5","SW7000A","SW6010D",null,null,null,"SW7740",null,"SW7010",null,null,null,null,null,null,"SW7000A",null,null,null,"SW9071B"]
["Parameter","Method Number","Method Number","Method Number",null,"EPA245.7 Rev 2.0-2005","SW7000B","SW6020",null,null,null,"SW7741A",null,"SW7761",null,null,null,null,null,null,"SW7000B",null,null,null,"SW9076"]
[null,null,null,null,"SOLID AND CHEMICAL TRACE METALS","SW6020","SW7010","SW6020A",null,null,null,"SW7742",null,null,null,null,null,null,null,null,"SW7010",null,null,null,"SW9210"]
[null,null,null,null,"SOLID AND CHEMICAL TRACE METALS","SW6020A",null,"SW6020B",null,null,null,null,null,null,null,null,null,null,null,null,null,null,null,null,"SW9210A"]
[null,null,null,null,"SOLID AND CHEMICAL TRACE METALS","SW6020B",null,"SW7000A",null,null,null,null,null,null,null,null,null,null,null,null,null,null,null,null,"SW9211"]
[null,null,null,null,"SOLID AND CHEMICAL TRACE METALS","SW7470A",null,"SW7000B",null,null,null,null,null,null,null,null,null,null,null,null,null,null,null,null,"SW9212"]
[null,null,null,null,"SOLID AND CHEMICAL TRACE METALS","SW7471A",null,"SW7010",null,null,null,null,null,null,null,null,null,null,null,null,null,null,null,null,"SW9213"]
[null,null,null,null,"SOLID AND CHEMICAL TRACE METALS","SW7471B",null,null,null,null,null,null,null,null,null,null,null,null,null,null,null,null,null,null,"SW9214"]
[null,null,null,null,"SOLID AND CHEMICAL TRACE METALS",null,null,null,null,null,null,null,null,null,null,null,null,null,null,null,null,null,null,null,"SW9250"]
[null,null,null,null,"SOLID AND CHEMICAL TRACE METALS",null,null,null,null,null,null,null,null,null,null,null,null,null,null,null,null,null,null,null,"SW9251"]
[null,null,null,null,"SOLID AND CHEMICAL TRACE METALS",null,null,null,null,null,null,null,null,null,null,null,null,null,null,null,null,null,null,null,"SW9251A"]
[null,null,null,null,"SOLID AND CHEMICAL TRACE METALS",null,null,null,null,null,null,null,null,null,null,null,null,null,null,null,null,null,null,null,"Walkley-Black"]
[null,null,null,null,"SOLID AND CHEMICAL TRACE METALS"]
[null,null,null,null,"SOLID AND CHEMICAL TRACE METALS"]
[null,null,null,null,"SOLID AND CHEMICAL TRACE METALS"]
[null,null,null,null,"SOLID AND CHEMICAL TRACE METALS"]
[null,null,null,null,"SOLID AND CHEMICAL TRACE METALS"]
[null,null,null,null,"SOLID AND CHEMICAL TRACE METALS"]
[null,null,null,null,"SOLID AND CHEMICAL TRACE METALS"]
[null,null,null,null,"SOLID AND CHEMICAL TRACE METALS"]
[null,null,null,null,"SOLID AND CHEMICAL TRACE METALS"]
[null,null,null,null,"SOLID AND CHEMICAL TRACE METALS"]
[null,null,null,null,"SOLID AND CHEMICAL TRACE METALS"]
[null,null,null,null,"SOLID AND CHEMICAL TRACE METALS"]
[null,null,null,null,"SOLID AND CHEMICAL TRACE METALS"]
[null,null,null,null,"SOLID AND CHEMICAL TRACE METALS"]
[null,null,null,null,"SOLID AND CHEMICAL TRACE METALS"]
[null,null,null,null,"SOLID AND CHEMICAL TRACE METALS"]
[null,null,null,null,"SOLID AND CHEMICAL TRACE METALS"]
[null,null,null,null,"SOLID AND CHEMICAL TRACE METALS"]
[null,null,null,null,"SOLID AND CHEMICAL TRACE METALS"]
[null,null,null,null,"SOLID AND CHEMICAL TRACE METALS"]
[null,null,null,null,"SOLID AND CHEMICAL TRACE METALS"]
[null,null,null,null,"SOLID AND CHEMICAL TRACE METALS"]
[null,null,null,null,"SOLID AND CHEMICAL TRACE METALS"]
[null,null,null,null,"SOLID AND CHEMICAL TRACE METALS"]
[null,null,null,null,"SOLID AND CHEMICAL TRACE METALS"]
[null,null,null,null,"SOLID AND CHEMICAL TRACE METALS"]
[null,null,null,null,"SOLID AND CHEMICAL TRACE METALS"]
[null,null,null,null,"SOLID AND CHEMICAL TRACE METALS"]
[null,null,null,null,"SOLID AND CHEMICAL TRACE METALS"]
[null,null,null,null,"SOLID AND CHEMICAL TRACE METALS"]
[null,null,null,null,"SOLID AND CHEMICAL TRACE METALS"]
[null,null,null,null,"SOLID AND CHEMICAL TRACE METALS"]
[null,null,null,null,"SOLID AND CHEMICAL TRACE METALS"]
[null,null,null,null,"SOLID AND CHEMICAL TRACE METALS"]
[null,null,null,null,"SOLID AND CHEMICAL TRACE METALS"]
[null,null,null,null,"SOLID AND CHEMICAL TRACE METALS"]
[null,null,null,null,"SOLID AND CHEMICAL TRACE METALS"]
[]
[]
[null,null,null,null,null,null,null,null,"Cleanup/ Digestion/"]
["PARAMETERS FOR WHICH YOU WISH CERTIFICATION",null,null,null,null,null,null,null,"Extraction"]
["A method number may be entered manually or selected from the drop-down menu that appears in the cell next to the parameter/ method.  When manually entering the method number, cite the method using common abbreviations.  For example, Fecal Coliform by Membrane Filter (MF), Method 9222D, Standard Methods for Examination of Water and Wastewater, 1997, would be cited as “SM9222 D-97”.  If you wish to be certified for a parameter/ method not listed, use the blank lines at the end of this section to enter the parameter/ method number manually or select from the drop-down menu.",null,null,null,null,null,null,null,"HACH 8047"]
["SOLID AND CHEMICAL MICROBIOLOGY",null,null,null,null,null,null,null,"ASTM D2036-09 (A)"]
["Parameter","Method Number","Method Number","Method Number",null,null,null,null,"ASTM D3987"]
["Coliform, Fecal (MF)",null,null,null,"SOLID AND CHEMICAL MICROBIOLOGY","Fecal Coliform (MF)","Total Coliform (MF)",null,"ASTM D7284-13"]
["Coliform, Fecal (MPN)",null,null,null,"SOLID AND CHEMICAL MICROBIOLOGY","SM9222 D-06","SM9222 B-06","Fecal Streptococci (MPN)","EPA200.0"]
["Coliform, Total (MF)",null,null,null,"SOLID AND CHEMICAL MICROBIOLOGY",null,null,"SM9230 B-07","EPA200.2 Rev 2.8-1994"]
["Coliform, Total (MPN)",null,null,null,"SOLID AND CHEMICAL MICROBIOLOGY",null,null,null,"HACH 8190",null,null,null,null,null,null,null,null,null,null,null,null,null,"S&C MICROBIOLOGY MASTER","SOLID AND CHEMICAL MICROBIOLOGY"]
["Streptococci, Fecal (MF)",null,null,null,"SOLID AND CHEMICAL MICROBIOLOGY",null,null,null,"SM3030 B-11",null,null,null,null,null,null,null,null,null,null,null,null,null,"EPA625-R-92-013 App F","Fecal Coliform (MF)"]
["Streptococci, Fecal (MPN)",null,null,null,"SOLID AND CHEMICAL MICROBIOLOGY",null,null,null,"SM3030 E-04",null,null,null,null,null,null,null,null,null,null,null,null,null,"SM9215 B-00","Fecal Coliform (MPN)"]
[null,null,null,null,"SOLID AND CHEMICAL MICROBIOLOGY",null,null,null,"SM3030 E-11",null,null,null,null,null,null,null,null,null,null,null,null,null,"SM9215 B-04","Total Coliform (MF)"]
[null,null,null,null,"SOLID AND CHEMICAL MICROBIOLOGY","Fecal Coliform (MPN)","Total Coliform (MPN)","Fecal Streptococci (MF)","SM3030 F-04",null,null,null,null,null,null,null,null,null,null,null,null,null,"SM9215 B-88","Total Coliform (MPN)"]
[null,null,null,null,"SOLID AND CHEMICAL MICROBIOLOGY","EPA625-R-92-013 App F","SM9221 B-06","SM9230 C-07","SM3030 F-11",null,null,null,null,null,null,null,null,null,null,null,null,null,"SM9215 B-94","Fecal Streptococci (MF)"]
[null,null,null,null,"SOLID AND CHEMICAL MICROBIOLOGY","SM9221 C-06",null,null,"SM3030 G-04",null,null,null,null,null,null,null,null,null,null,null,null,null,"SM9215 D-00","Fecal Streptococci (MPN)"]
[null,null,null,null,"SOLID AND CHEMICAL MICROBIOLOGY","SM9221 E-06",null,null,"SM3030 G-11",null,null,null,null,null,null,null,null,null,null,null,null,null,"SM9215 D-04","Heterotrophic Plate Count (HPC)"]
[null,null,null,null,"SOLID AND CHEMICAL MICROBIOLOGY",null,null,null,"SM3030 H-04",null,null,null,null,null,null,null,null,null,null,null,null,null,"SM9215 D-88"]
[null,null,null,null,null,null,null,null,"SM3030 H-11",null,null,null,null,null,null,null,null,null,null,null,null,null,"SM9215 D-94"]
[null,null,null,null,null,null,null,null,"SM3030 I-04",null,null,null,null,null,null,null,null,null,null,null,null,null,"SM9221 B-06"]
[null,null,null,null,null,null,null,null,"SM3030 I-11",null,null,null,null,null,null,null,null,null,null,null,null,null,"SM9221 C-06"]
[null,null,null,null,null,null,null,null,"SM3030 J-04",null,null,null,null,null,null,null,null,null,null,null,null,null,"SM9221 E-06"]
[null,null,null,null,null,null,null,null,"SM3030 J-11",null,null,null,null,null,null,null,null,null,null,null,null,null,"SM9222 B-97"]
[null,null,null,null,null,null,null,null,"SM3030 K-04",null,null,null,null,null,null,null,null,null,null,null,null,null,"SM9222 D-97"]
[null,null,null,null,null,null,null,null,"SM3030 K-11",null,null,null,null,null,null,null,null,null,null,null,null,null,"SM9223 B-04"]
[null,null,null,null,null,null,null,null,"SM4500-CN B-11",null,null,null,null,null,null,null,null,null,null,null,null,null,"SM9223 B-04"]
[null,null,null,null,null,null,null,null,"SM4500-CN C-11",null,null,null,null,null,null,null,null,null,null,null,null,null,"SM9230 B-07"]
[null,null,null,null,null,null,null,null,"SM4500-CN G-11",null,null,null,null,null,null,null,null,null,null,null,null,null,"SM9230 C-07"]
[null,null,null,null,null,null,null,null,"SM4500-CN I-11"]
[null,null,null,null,null,null,null,null,"SM4500-F B-11"]
[null,null,null,null,null,null,null,null,"SM4500-NH3 B-11"]
[null,null,null,null,null,null,null,null,"SM4500-Norg B-11"]
[null,null,null,null,null,null,null,null,"SM4500-Norg C-11"]
[null,null,null,null,null,null,null,null,"SM4500-P B(5)-11"]
[null,null,null,null,null,null,null,null,"SM4500-S B-11"]
[null,null,null,null,null,null,null,null,"SM4500-S C-11"]
[null,null,null,null,null,null,null,null,"SM5530 B-10"]
[null,null,null,null,null,null,null,null,"SOP DV-OP-0019"]
[null,null,null,null,null,null,null,null,"SW3005A"]
[null,null,null,null,null,null,null,null,"SW3010A"]
[null,null,null,null,null,null,null,null,"SW3015"]
[null,null,null,null,null,null,null,null,"SW3015A"]
[null,null,null,null,null,null,"Extractable & SVOCs",null,"SW3020A"]
[null,null,null,null,null,null,"#010-008-046",null,"SW3030B"]
[null,null,null,null,null,null,"01M-008-046 (Rev 1)",null,"SW3030C"]
[null,null,null,null,null,null,"EPA1657A",null,"SW3031"]
[null,null,null,null,null,null,"EPA1668A",null,"SW3040A"]
[null,null,null,null,null,null,"EPA1668A",null,"SW3050B"]
[null,null,null,null,null,null,"EPA353.2 Rev 2.0-1993",null,"SW3050C"]
[null,null,null,null,null,null,"EPA504",null,"SW3051"]
[null,null,null,null,null,null,"EPA604",null,"SW3051A"]
[null,null,null,null,null,null,"EPA605",null,"SW3052"]
["PARAMETERS FOR WHICH YOU WISH CERTIFICATION",null,null,null,null,null,"EPA606",null,"SW3060A"]
["A method number may be entered manually or selected from the drop-down menu that appears in the cell next to the parameter/ method.  When manually entering the method number, cite the method using common abbreviations.  For example, Volatile Organic Compounds, Gas Chromatography(GC)/Mass Spectrometry(MS), SW-846-8260B, would be cited as SW8260B.  If you wish to be certified for a parameter/ method not listed, use the blank lines at the end of this section to enter the parameter/ method number manually or select from the drop-down menu.",null,null,null,null,null,"EPA607",null,"SW3500C"]
["SOLID AND CHEMICAL VOLATILE ORGANIC CHEMICALS",null,null,null,null,null,"EPA608",null,"SW3510C"]
["Parameter","Method Number","Method Number","Method Number",null,null,"EPA609",null,"SW3511"]
[null,null,null,null,"SOLID AND CHEMICAL VOLATILE ORGANIC CHEMICALS",null,"EPA610",null,"SW3520C"]
[null,null,null,null,"SOLID AND CHEMICAL VOLATILE ORGANIC CHEMICALS",null,"EPA611",null,"SW3535"]
[null,null,null,null,"SOLID AND CHEMICAL VOLATILE ORGANIC CHEMICALS",null,"EPA612",null,"SW3535A"]
[null,null,null,null,"SOLID AND CHEMICAL VOLATILE ORGANIC CHEMICALS",null,"EPA613",null,"SW3540C"]
[null,null,null,null,"SOLID AND CHEMICAL VOLATILE ORGANIC CHEMICALS","VOCs","EPA614",null,"SW3541"]
[null,null,null,null,"SOLID AND CHEMICAL VOLATILE ORGANIC CHEMICALS","EPA601","EPA615",null,"SW3545"]
[null,null,null,null,"SOLID AND CHEMICAL VOLATILE ORGANIC CHEMICALS","EPA602","EPA617",null,"SW3545A"]
[null,null,null,null,"SOLID AND CHEMICAL VOLATILE ORGANIC CHEMICALS","EPA603","EPA624.1",null,"SW3546"]
[null,null,null,null,"SOLID AND CHEMICAL VOLATILE ORGANIC CHEMICALS","EPA624.1","EPA625.1",null,"SW3550B"]
[null,null,null,null,"SOLID AND CHEMICAL VOLATILE ORGANIC CHEMICALS","RSK175","Risher Method",null,"SW3550C"]
[null,null,null,null,null,"SW8015B","SOP DV-LC-0012",null,"SW3560"]
[null,null,null,null,null,"SW8015C","SW8011",null,"SW3561"]
["PARAMETERS FOR WHICH YOU WISH CERTIFICATION",null,null,null,null,"SW8015D","SW8015B",null,"SW3580A"]
["A method number may be entered manually or selected from the drop-down menu that appears in the cell next to the parameter/ method.  When manually entering the method number, cite the method using common abbreviations.  For example, Semi-Volatile Organic Compounds, Gas Chromatography(GC)/Mass Spectrometry(MS), SW-846 8270C, would be cited as SW8270C.  If you wish to be certified for a parameter/ method not listed, use the blank lines at the end of this section to enter the parameter/ method number manually or select from the drop-down menu.",null,null,null,null,"SW8021B","SW8015C",null,"SW3585"]
["SOLID AND CHEMICAL EXTRACTABLE AND SEMI-VOLATILE ORGANIC CHEMICALS",null,null,null,null,"SW8031","SW8015D",null,"SW3600C"]
[null,null,null,null,null,"SW8260B","SW8032A",null,"SW3610C"]
["Parameter","Method Number","Method Number","Method Number",null,"SW8260C","SW8041",null,"SW3611B"]
[null,null,null,null,"SOLID AND CHEMICAL EXTRACTABLE AND SEMI-VOLATILE ORGANIC CHEMICALS",null,"SW8041B",null,"SW3620B"]
[null,null,null,null,"SOLID AND CHEMICAL EXTRACTABLE AND SEMI-VOLATILE ORGANIC CHEMICALS",null,"SW8061A",null,"SW3620C"]
[null,null,null,null,"SOLID AND CHEMICAL EXTRACTABLE AND SEMI-VOLATILE ORGANIC CHEMICALS",null,"SW8070A","Prepatory Method Names","SW3630C"]
[null,null,null,null,"SOLID AND CHEMICAL EXTRACTABLE AND SEMI-VOLATILE ORGANIC CHEMICALS",null,"SW8081A","18 H DI Leachate","SW3640A"]
[null,null,null,null,"SOLID AND CHEMICAL EXTRACTABLE AND SEMI-VOLATILE ORGANIC CHEMICALS",null,"SW8081B","Alkalinity","SW3650B"]
[null,null,null,null,"SOLID AND CHEMICAL EXTRACTABLE AND SEMI-VOLATILE ORGANIC CHEMICALS",null,"SW8082","Ammonia","SW3660B"]
[null,null,null,null,"SOLID AND CHEMICAL EXTRACTABLE AND SEMI-VOLATILE ORGANIC CHEMICALS",null,"SW8082A","APFO (ammonium perflourooctanoate)","SW3665A"]
[null,null,null,null,"SOLID AND CHEMICAL EXTRACTABLE AND SEMI-VOLATILE ORGANIC CHEMICALS",null,"SW8091","Chlorinated Herbicides","SW5000"]
[null,null,null,null,"SOLID AND CHEMICAL EXTRACTABLE AND SEMI-VOLATILE ORGANIC CHEMICALS",null,"SW8100","Chromium, Hexavalent","SW5021"]
[null,null,null,null,"SOLID AND CHEMICAL EXTRACTABLE AND SEMI-VOLATILE ORGANIC CHEMICALS",null,"SW8111","Chromium, Hexavalent","SW5030B"]
[null,null,null,null,null,null,"SW8120A","Cleanup","SW5031"]
[null,null,null,null,null,null,"SW8121","Closed System Purge & Trap","SW5032"]
[null,null,null,null,null,null,"SW8141A","Continuous Liquid- Liquid","SW5035"]
[null,null,null,null,null,null,"SW8141B","Cyanide","SW5035A"]
[null,null,null,null,null,null,"SW8151A","Cyanide, Amenable to Chlorination","SW5041A"]
[null,null,null,null,null,null,"SW8270C","Cyanide, Available","SW5050"]
[null,null,null,null,null,null,"SW8270D","Cyanide, Free","SW8151A"]
[null,null,null,null,null,null,"SW8310","Cyanide, Reactive","SW8330A"]
[null,null,null,null,null,null,"SW8315A","Cyanide, Total","SW9010B"]
[null,null,null,null,null,null,"SW8318A","Cyanide, Total & Amenable","SW9010C"]
[null,null,null,null,null,null,"SW8321A","Cyanide, Weak Acid Dissociable","SW9013"]
[null,null,null,null,null,null,"SW8321B","Florisil Cleanup","SW9013A"]
[null,null,null,null,null,null,"SW8330","Fluoride","SW9030B"]
[null,null,null,null,null,null,"SW8330A","Gel-Permeation Cleanup","SW9031"]
["PARAMETERS FOR WHICH YOU WISH CERTIFICATION",null,null,null,null,null,"SW8330B","Halides, Total","USATHAMA"]
["A method number may be entered manually or selected from the drop-down menu that appears in the cell next to the parameter/ method.  For example, Dioxin, Gas Chromatography(GC)/Mass Spectrometry(MS), SW-846 8280B would be cited as SW8280B.  If you wish to be certified for a parameter/ method not listed, use the blank lines at the end of this section to enter the parameter/ method number manually or select from the drop-down menu.",null,null,null,null,null,"SW8332","Headspace, Equilibrium Analysis"]
["SOLID AND CHEMICAL DIOXIN AND DIBENZOFURAN",null,null,null,null,null,"USATHAMA","Liquid-Liquid Extraction"]
["Parameter","Method Number","Method Number","Method Number",null,null,"V0002522","Metals, Dissolved"]
[null,null,null,null,"SOLID AND CHEMICAL DIOXIN AND DIBENZOFURAN",null,null,"Metals, Extractable"]
[null,null,null,null,"SOLID AND CHEMICAL DIOXIN AND DIBENZOFURAN",null,null,"Metals, Total"]
[null,null,null,null,"SOLID AND CHEMICAL DIOXIN AND DIBENZOFURAN",null,null,"Microextraction"]
[null,null,null,null,"SOLID AND CHEMICAL DIOXIN AND DIBENZOFURAN",null,null,"Microwave Extraction"]
[null,null,null,null,null,"Parameter","Method Number","Nitroaromatics & Nitramines"]
[null,null,null,null,null,"2,3,7,8-Tetrachlorodibenzo-p-dioxin","EPA1613B","Nitrocellulose"]
[null,null,null,null,null,"Dioxins & Furans (PCDD/F)","EPA1668A","Nitrogen, Total Kjeldahl"]
["PARAMETERS FOR WHICH YOU WISH CERTIFICATION",null,null,null,null,"PCB Congeners","SW8280A","Organic Extraction and Sample Preparation"]
["A method number may be entered manually or selected from the drop-down menu that appears in the cell next to the parameter/ method.  When manually entering the method number, cite the method using common abbreviations.  For example, Alpha Counting Error, Method 7110B, Standard Methods for Examination of Water and Wastewater, 1991, would be cited as “SM7110 B-91”.  If you wish to be certified for a parameter/ method not listed, use the blank lines at the end of this section to enter the parameter/ method number manually or select from the drop-down menu.                        ",null,null,null,null,null,"SW8280B","Phenolics, Total"]
["SOLID AND CHEMICAL RADIOCHEMISTRY",null,null,null,null,null,"SW8290","Phosphorus, Total"]
["Parameter","Method Number","Method Number","Method Number",null,null,"SW8290A","Pressurized Fluid (PFE)"]
[null,null,null,null,"SOLID AND CHEMICAL RADIOCHEMISTRY",null,null,"Purge & Trap For Aqueous Samples"]
[null,null,null,null,"SOLID AND CHEMICAL RADIOCHEMISTRY",null,null,"Separatory Funnel Liquid-Liquid"]
[null,null,null,null,"SOLID AND CHEMICAL RADIOCHEMISTRY",null,null,"Silica Gel Cleanup"]
[null,null,null,null,"SOLID AND CHEMICAL RADIOCHEMISTRY",null,null,"Solid Phase Extraction"]
[null,null,null,null,"SOLID AND CHEMICAL RADIOCHEMISTRY",null,null,"Soxhlet"]
[null,null,null,null,"SOLID AND CHEMICAL RADIOCHEMISTRY",null,null,"Soxhlet, Automated"]
[null,null,null,null,"SOLID AND CHEMICAL RADIOCHEMISTRY",null,null,"Sulfide"]
[null,null,null,null,"SOLID AND CHEMICAL RADIOCHEMISTRY","Radiochemistry",null,"Sulfide, Reactive"]
[null,null,null,null,"SOLID AND CHEMICAL RADIOCHEMISTRY","EPA900.0",null,"Sulfur Cleanup"]
[null,null,null,null,"SOLID AND CHEMICAL RADIOCHEMISTRY","SM7500-Ra C-88",null,"Sulfuric Acid/ Permanganate Cleanup"]
[null,null,null,null,"SOLID AND CHEMICAL RADIOCHEMISTRY","SM7500-Ra D-88",null,"Ultrasonic"]
[null,null,null,null,"SOLID AND CHEMICAL RADIOCHEMISTRY","SM7500-Ra C-93",null,"Waste Dilution"]
[null,null,null,null,"SOLID AND CHEMICAL RADIOCHEMISTRY","SM7500-Ra D-93",null,"Waste Dilution for Volatile Organics"]
[null,null,null,null,"SOLID AND CHEMICAL RADIOCHEMISTRY","SM7500-Ra C-01"]
[null,null,null,null,"SOLID AND CHEMICAL RADIOCHEMISTRY","SM7500-Ra D-01"]
[null,null,null,null,null,"SM7500-Ra C-11"]
[null,null,null,null,null,"SM7500-Ra D-11"]
[]
[]
[]
[]
[]
[]
[]
[]
[]
[]
[]
[]
[]
[]
[]
[]
[]
[]
[]
["EXTRACTION, DIGESTION, CLEANUP, and PREPARATORY METHODS"]
["In order to assure that the laboratory is using the appropriate method for extraction, digestion, cleanup and preparation, please list the method being used with the appropriate method number.  This includes all method citations for digestion, distillation, or any other preparatory method employed prior to determinative methods.  A method number may be entered manually or selected from the drop-down menu that appears in the cell next to the type of method used/ method number used. When manually entering the method number, cite the method using common abbreviations.  "]
["There is no fee associated with these techniques."]
["Ext./Dig/Cleanup/Prep Method               ","Method Number","Method Number","Method Number"]
[null,null,null,null,"EXTRACTION, DIGESTION, CLEANUP, and PREPARATORY METHODS"]
[null,null,null,null,"EXTRACTION, DIGESTION, CLEANUP, and PREPARATORY METHODS"]
[null,null,null,null,"EXTRACTION, DIGESTION, CLEANUP, and PREPARATORY METHODS"]
[null,null,null,null,"EXTRACTION, DIGESTION, CLEANUP, and PREPARATORY METHODS"]
[null,null,null,null,"EXTRACTION, DIGESTION, CLEANUP, and PREPARATORY METHODS"]
[null,null,null,null,"EXTRACTION, DIGESTION, CLEANUP, and PREPARATORY METHODS"]
[null,null,null,null,"EXTRACTION, DIGESTION, CLEANUP, and PREPARATORY METHODS"]
[null,null,null,null,"EXTRACTION, DIGESTION, CLEANUP, and PREPARATORY METHODS"]
[null,null,null,null,"EXTRACTION, DIGESTION, CLEANUP, and PREPARATORY METHODS"]
[null,null,null,null,"EXTRACTION, DIGESTION, CLEANUP, and PREPARATORY METHODS"]
[null,null,null,null,"EXTRACTION, DIGESTION, CLEANUP, and PREPARATORY METHODS"]
[null,null,null,null,"EXTRACTION, DIGESTION, CLEANUP, and PREPARATORY METHODS"]
[null,null,null,null,"EXTRACTION, DIGESTION, CLEANUP, and PREPARATORY METHODS"]
[null,null,null,null,"EXTRACTION, DIGESTION, CLEANUP, and PREPARATORY METHODS"]
[null,null,null,null,"EXTRACTION, DIGESTION, CLEANUP, and PREPARATORY METHODS"]
[null,null,null,null,"EXTRACTION, DIGESTION, CLEANUP, and PREPARATORY METHODS"]
[null,null,null,null,"EXTRACTION, DIGESTION, CLEANUP, and PREPARATORY METHODS"]
[null,null,null,null,"EXTRACTION, DIGESTION, CLEANUP, and PREPARATORY METHODS"]
[null,null,null,null,"EXTRACTION, DIGESTION, CLEANUP, and PREPARATORY METHODS"]
[null,null,null,null,"EXTRACTION, DIGESTION, CLEANUP, and PREPARATORY METHODS"]
[null,null,null,null,"EXTRACTION, DIGESTION, CLEANUP, and PREPARATORY METHODS"]
[null,null,null,null,"EXTRACTION, DIGESTION, CLEANUP, and PREPARATORY METHODS"]
[null,null,null,null,"EXTRACTION, DIGESTION, CLEANUP, and PREPARATORY METHODS"]
[null,null,null,null,"EXTRACTION, DIGESTION, CLEANUP, and PREPARATORY METHODS"]
[null,null,null,null,"EXTRACTION, DIGESTION, CLEANUP, and PREPARATORY METHODS"]
[null,null,null,null,"EXTRACTION, DIGESTION, CLEANUP, and PREPARATORY METHODS"]
[null,null,null,null,"EXTRACTION, DIGESTION, CLEANUP, and PREPARATORY METHODS"]
[null,null,null,null,"EXTRACTION, DIGESTION, CLEANUP, and PREPARATORY METHODS"]
[null,null,null,null,"EXTRACTION, DIGESTION, CLEANUP, and PREPARATORY METHODS"]
[null,null,null,null,"EXTRACTION, DIGESTION, CLEANUP, and PREPARATORY METHODS"]
[null,null,null,null,"EXTRACTION, DIGESTION, CLEANUP, and PREPARATORY METHODS"]
[null,null,null,null,"EXTRACTION, DIGESTION, CLEANUP, and PREPARATORY METHODS"]
[null,null,null,null,"EXTRACTION, DIGESTION, CLEANUP, and PREPARATORY METHODS"]
[null,null,null,null,"EXTRACTION, DIGESTION, CLEANUP, and PREPARATORY METHODS"]
[null,null,null,null,"EXTRACTION, DIGESTION, CLEANUP, and PREPARATORY METHODS"]
[null,null,null,null,"EXTRACTION, DIGESTION, CLEANUP, and PREPARATORY METHODS"]
[null,null,null,null,"EXTRACTION, DIGESTION, CLEANUP, and PREPARATORY METHODS"]
[null,null,null,null,"EXTRACTION, DIGESTION, CLEANUP, and PREPARATORY METHODS"]

{"sheet":"Fee Calculation","index":2,"n_rows":85,"n_cols":12,"rows_kept":85,"cut":false,"hidden":true,"merged":[[84,0,84,8],[75,0,75,5],[77,0,77,5],[78,0,78,5],[80,0,80,5],[81,0,81,5],[82,0,82,5],[79,5,79,6],[72,0,72,5],[38,0,38,5],[40,0,40,5],[0,0,0,9],[42,0,42,5],[43,0,43,5],[63,0,63,5],[64,0,64,5],[30,0,30,5],[67,0,67,5],[69,0,69,5],[70,0,70,5],[56,0,56,5],[57,0,57,5],[58,0,58,5],[59,0,59,5],[61,0,61,5],[62,0,62,5],[52,0,52,5],[53,0,53,5],[54,0,54,5],[50,0,50,5],[13,0,13,5],[23,0,23,5],[27,0,27,5],[33,0,33,5],[36,0,36,5],[26,0,26,5],[16,0,16,5],[28,0,28,5],[34,0,34,5],[49,0,49,5],[7,0,7,5],[12,0,12,5],[21,0,21,5],[20,0,20,5],[25,0,25,5],[14,0,14,5],[22,0,22,5],[8,0,8,5],[9,0,9,5],[17,0,17,5],[18,0,18,5],[10,0,10,5],[6,0,6,9],[4,0,4,9],[2,0,2,9],[5,0,5,8],[1,0,1,9],[3,0,3,9]]}
["FEE CALCULATION"]
["Please complete the parameter pages for those parameters/analytes your facility is seeking certification before  "]
["calculating your fees.  Send the completed application as specified in the instructions.  After the office recieves the "]
["application, fees will be assessed, and you will be notified within 10 business days, informing you of the total amount due"]
["for the application."]
["Those Inorganic Nonmetal parameters marked by *** do not require a fee payment."]
["(Certification Fees are Non-refundable)"]
["APPLICATION FEES:"]
["Initial Application:",null,null,null,null,null,null,"+",100,{"$f":"IF(G9=\"Y\", 100, 0)","v":0}]
["Renewal Application;",null,null,null,null,null,null,"+",80,{"$f":"IF(G10=\"Y\", 80, 0)","v":0}]
["Additional Application (For parameters/methods added after renewal) ",null,null,null,null,null,null,"+",50,{"$f":"IF(G11=\"Y\", 50, 0)","v":0}]
[null,null,null,null,null,null,null,null,null,null,{"$f":"SUM(J9:J11)","v":0}]
["NONPOTABLE WATER INORGANIC NONMETALS:",null,null,null,null,null,null,null,null,null,{"$f":"OR(K12=100,K12=80,K12=50)","v":false}]
["Per analyte or parameter for one method",null,null,null,null,null,null,"X",50,{"$f":"G14*I14","v":0}]
["Each additional method for the same analyte or parameter",null,null,null,null,null,null,"X",25,{"$f":"G15*I15","v":0}]
[]
["NONPOTABLE WATER TRACE METALS:"]
["Per metal for one method",null,null,null,null,null,null,"X",20,{"$f":"G18*I18","v":0}]
["Each additional method for the same metal",null,null,null,null,null,null,"X",10,{"$f":"G19*I19","v":0}]
[]
["NONPOTABLE WATER "]
["VOLATILE ORGANIC CHEMICALS:"]
["Per method – Up to 2 methods",null,null,null,null,null,null,"X",250,{"$f":"G23*I23","v":0}]
["3 or more methods is Category Maximum",null,null,null,null,null,null,"X",250,{"$f":"G24*I24","v":0}]
[]
["NONPOTABLE WATER EXTRACTABLE "]
["AND SEMI-VOLATILE ORGANIC CHEMICALS:"]
["Per method – Up to 2 methods",null,null,null,null,null,null,"X",250,{"$f":"G28*I28","v":0},"Y"]
["3 or more methods is Category Maximum",null,null,null,null,null,null,"X",250,{"$f":"G29*I29","v":0},"N"]
[]
["NONPOTABLE WATER DIOXIN AND DIBENZOFURAN:"]
[null,null,null,null,null,null,null,"+",{"$f":"IF(G32=\"Y\",1000,0)","v":0},{"$f":"IF(I32=1000,1000,0)","v":0}]
[]
["NONPOTABLE WATER MICROBIOLOGY:"]
["Per method",null,null,null,null,null,null,"X",75,{"$f":"G35*I35","v":0}]
[]
["NONPOTABLE WATER RADIOCHEMISTRY:",null,null,null,null,null,null,"+",{"$f":"IF(G37=\"Y\",600,0)","v":0},{"$f":"IF(I37=600,600,0)","v":0}]
[]
["WHOLE EFFLUENT TOXICITY – ACUTE:",null,null,null,null,null,null,"+",{"$f":"IF(G39=\"Y\",750,0)","v":0},{"$f":"IF(I39=750,750,0)","v":0}]
[]
["WHOLE EFFLUENT TOXICITY – CHRONIC:",null,null,null,null,null,null,"+",{"$f":"IF(G41=\"Y\",750,0)","v":0},{"$f":"IF(I41=750,750,0)","v":0}]
[]
["HAZARDOUS WASTE CHARACTERISTICS:"]
["Per procedure",null,null,null,null,null,null,"X",150,{"$f":"G44*I44","v":0}]
[]
[]
[]
[]
["SOLID AND CHEMICAL INORGANIC NONMETALS:"]
["Per analyte or parameter for one method",null,null,null,null,null,null,"X",50,{"$f":"G50*I50","v":0}]
["Each additional method for the same analyte or parameter",null,null,null,null,null,null,"X",25,{"$f":"G51*I51","v":0}]
[]
["SOLID AND CHEMICAL TRACE METALS:"]
["Per metal for one method",null,null,null,null,null,null,"X",20,{"$f":"G54*I54","v":0}]
["Each additional method for the same metal",null,null,null,null,null,null,"X",10,{"$f":"G55*I55","v":0}]
[]
["SOLID AND CHEMICAL"]
["VOLATILE ORGANIC CHEMICALS:   "]
["Per method – Up to 2 methods",null,null,null,null,null,null,"X",250,{"$f":"G59*I59","v":0}]
["3 or more methods is Category Maximum",null,null,null,null,null,null,"X",250,{"$f":"G60*I60","v":0}]
[]
["SOLID AND CHEMICAL EXTRACTABLE"]
["AND SEMI-VOLATILE ORGANIC CHEMICALS:"]
["Per method – Up to 2 methods",null,null,null,null,null,null,"X",250,{"$f":"G64*I64","v":0}]
["3 or more methods is Category Maximum",null,null,null,null,null,null,"X",250,{"$f":"G65*I65","v":0}]
[]
[]
["SOLID AND CHEMICAL DIOXIN AND DIBENZOFURAN:",null,null,null,null,null,null,"+",{"$f":"IF(G68=\"Y\",1000,0)","v":0},{"$f":"IF(I68=1000,1000,0)","v":0},"Column1","Column2"]
[null,null,null,null,null,null,null,null,null,null,0,0]
["SOLID AND CHEMICAL MICROBIOLOGY:",null,null,null,null,null,null,null,null,null,1,100]
["Per method",null,null,null,null,null,null,"X",75,{"$f":"G71*I71","v":0},2,360]
[null,null,null,null,null,null,null,null,null,null,3,610]
["SOLID AND CHEMICAL RADIOCHEMISTRY:",null,null,null,null,null,null,"+",{"$f":"IF(G73=\"Y\",600,0)","v":0},{"$f":"IF(I73=600,600,0)","v":0},4,670]
[null,null,null,null,null,null,null,null,null,null,5,730]
[null,null,null,null,null,null,null,null,null,null,6,790]
["SUBTOTAL CERTIFICATION FEE  (A) = ",null,null,null,null,null,null,null,null,{"$f":"IF(K13=TRUE,SUM(J9:J73),\"ERROR!\")","v":"ERROR!"},7,1010]
[null,null,null,null,null,null,null,null,null,null,8,1070]
["ASSESSED TRAVEL COSTS FOR",null,null,null,null,null,null,null,null,null,9,1130]
[" OUT OF STATE LABORATORIES:",null,null,null,null,null,null,null,null,null,10,1190]
["Enter Travel Zone:",null,0,null,null,"Travel Fee (B) = ",null,"+",{"$f":"VLOOKUP(C80,K69:L80,2)","v":0},{"$f":"VLOOKUP(C80,K69:L80,2)","v":0},"X",1190]
["For those in Travel Zone “X” a fee of $1190.00 will be required"]
["at time of application.  The balance of travel costs will be"]
[" invoiced after the audit."]
[]
["TOTAL REMITTED WITH THIS APPLICATION (A) + (B)  =",null,null,null,null,null,null,null,null,{"$f":"SUM(J76,J80)","v":0}]